Cogmind - Beta 16 @@@ ROGUE MODE // 2025.11.02 @ 20:06:47 Player: szymekc Result: Destroyed by P-80 Master with Gamma Rifle Performance ------------- Evolutions (8) 4000 Regions Visited (28) 5600 Robots Destroyed (627) 3135 Value Destroyed (33979) 33979 Prototype IDs (78) 1560 Alien Tech Used (0) 0 Bonus (20336) 20336 TOTAL SCORE: 68610 Bonus ------- High Alert Combat Kills 5983 Follower Combat Kills 7250 Entered Garrisons 1400 Used RIF Installer 4000 Network Hubs Disabled 800 Built Enhanced Grunts 300 Met R17 at Cetus 500 Met R17 at Research 2000 Scanned by Researcher 500 Friendly Fire -2397 Cogmind --------- Core Integrity 0/1450 Matter 300/300 Energy 100/100 System Corruption 15% Temperature Cool (0) Movement Core (50) Location -2/Research Parts ------- > --- POWER (3) -------- (None) > --- PROPULSION (6) --- (None) > --- UTILITY (10) ----- (None) > --- WEAPON (4) ------- (None) > --- INVENTORY (5) ---- YI-UF0's Bottomless Matter Pit (1061) Potential Cannon Improved Potential Cannon Peak State ------------ > --- POWER ------------ Light Particle Reactor Quantum Reactor Improved Quantum Reactor > --- PROPULSION ------- Centrium Heavy Treads Centrium Heavy Treads Centrium Heavy Treads > --- UTILITY ---------- Large Storage Unit Experimental Energy Well Experimental Optical Array Advanced Weapon Cycler SHELL Armor Graphene Brace AEGIS Remote Shield Relay Coupler [NC] > --- WEAPON ----------- Cooled Phase Cannon Potential Cannon Plasma Lance > --- INVENTORY -------- Improved Energy Well Experimental Energy Well YI-UF0's Bottomless Matter Pit Improved Transmission Jammer Hypervelocity EM Gauss Rifle Precision Phase Gun Precision Phase Gun Improved Potential Cannon Hypervelocity Mass Driver Tiamat Missile Launcher Advanced Remote Datajack [Rating: 201] Favorites ----------- Power Light Antimatter Reactor Engine Cooled Ion Engine Power Core Neutrino Core Reactor Light Antimatter Reactor Propulsion Light Treads Treads Light Treads Leg Enhanced Biometal Leg Wheel Armored Huge Wheel Hover Unit Improved Airjet Flight Unit Impulse Thruster Array Utility High-capacity Storage Unit Device Advanced Heat Sink Storage High-capacity Storage Unit Processor Core Analyzer Hackware Relay Coupler [Hunter] Protection Improved Powered Armor Weapon Railgun Energy Gun Advanced Beam Rifle Energy Cannon Cooled Particle Cannon Ballistic Gun Railgun Ballistic Cannon Linear Accelerator Launcher Mini Smartbomb Launcher Special Weapon Improved Remote Datajack Impact Weapon Powered Hammer Slashing Weapon Phasing Sabre Piercing Weapon Plasma Lance Build | -11 -10 -10 -9 -9 -8 -8 -8 -7 -7 -7 -6 -6 -6 -6 -6 -5 -5 -5 -5 -4 -4 -4 -4 -4 -4 -3 -3 -2 ------- Run | Yrd Mat Min Mat Min Mat Gar Mat Fac Sto Gar Fac Ext Cet Arc Hub Fac Gar Fac Gar Fac Gar Fac Gar Fac Gar Res Tes Res Slots Evolved 16 | . . . 2 . 2 . . 2 . . 2 . . . . 2 . . . 2 . . . . . 2 . 2 Power 2 | . . . . . . . . . . . . . . . . 1 . . . . . . . . . . . 1 Propulsion 4 | . . . 1 . 1 . . . . . . . . . . . . . . . . . . . . 2 . . Utility 8 | . . . 1 . . . . 2 . . 1 . . . . 1 . . . 2 . . . . . . . 1 Weapon 2 | . . . . . 1 . . . . . 1 . . . . . . . . . . . . . . . . . Parts Attached 501 | 7 5 5 34 6 35 8 8 10 25 15 6 5 13 7 14 19 28 23 15 16 25 5 21 22 22 63 23 16 Power 73 | 1 1 2 3 1 6 1 1 1 4 1 2 . 1 1 1 4 4 4 3 . 5 . 6 2 4 7 3 4 Engine 19 | 1 1 2 3 1 5 . 1 1 3 . . . . . . . 1 . . . . . . . . . . . Core 27 | . . . . . 1 1 . . 1 1 1 . . . . 4 3 3 3 . 1 . 2 2 3 . 1 . Reactor 27 | . . . . . . . . . . . 1 . 1 1 1 . . 1 . . 4 . 4 . 1 7 2 4 Propulsion 111 | 2 1 . 10 1 11 2 3 2 5 11 1 2 2 . 4 2 5 4 . 1 4 1 3 6 1 19 6 2 Treads 58 | 2 1 . 8 1 10 2 3 . 5 11 . 2 2 . 1 1 . . . . . . . 2 1 3 3 . Leg 38 | . . . . . . . . . . . 1 . . . 3 . 5 4 . 1 4 1 3 4 . 12 . . Wheel 6 | . . . 2 . 1 . . 1 . . . . . . . 1 . . . . . . . . . 1 . . Hover 1 | . . . . . . . . 1 . . . . . . . . . . . . . . . . . . . . Flight 8 | . . . . . . . . . . . . . . . . . . . . . . . . . . 3 3 2 Utility 183 | 2 1 . 9 4 10 2 3 4 6 1 2 1 5 4 9 6 12 12 7 8 7 4 8 7 13 21 8 7 Device 73 | 2 . . 4 2 7 1 . 1 2 . 1 1 2 3 4 . 5 4 5 2 3 . 3 2 4 8 2 5 Storage 13 | . 1 . 2 1 1 . . 1 . . . . 1 . . . 1 . . . . . . 1 1 . 3 . Processor 16 | . . . 2 . . . . . 2 . 1 . . . 1 1 1 . . 1 1 1 . . 1 3 . 1 Hackware 64 | . . . . . 1 1 3 2 1 . . . 1 . 3 3 5 7 . 5 2 3 5 4 7 9 1 1 Protection 17 | . . . 1 1 1 . . . 1 1 . . 1 1 1 2 . 1 2 . 1 . . . . 1 2 . Artifact . | . . . . . . . . . . . . . . . . . . . . . . . . . . . . . Weapon 134 | 2 2 3 12 . 8 3 1 3 10 2 1 2 5 2 . 7 7 3 5 7 9 . 4 7 4 16 6 3 Energy Gun 22 | . . 2 4 . 4 . . 1 3 . . . . . . . . . 2 . 2 . . . . 1 3 . Energy Cannon 19 | . . . 1 . . . 1 . 3 2 1 . . . . 2 1 . 1 . . . 1 . 2 1 2 1 Ballistic Gun 48 | 2 1 1 3 . 3 1 . 1 1 . . 1 4 2 . 2 5 3 2 4 5 . 1 4 2 . . . Ballistic Cannon 20 | . . . 2 . . . . 1 . . . . . . . 2 . . . 3 1 . . 2 . 7 . 2 Launcher 10 | . . . 1 . 1 1 . . 1 . . 1 . . . . . . . . 1 . . . . 3 1 . Special Weapon 10 | . 1 . . . . 1 . . 1 . . . . . . 1 1 . . . . . 1 1 . 3 . . Impact Weapon 1 | . . . . . . . . . 1 . . . . . . . . . . . . . . . . . . . Slashing Weapon 3 | . . . 1 . . . . . . . . . 1 . . . . . . . . . 1 . . . . . Piercing Weapon 1 | . . . . . . . . . . . . . . . . . . . . . . . . . . 1 . . Special Melee Weapon . | . . . . . . . . . . . . . . . . . . . . . . . . . . . . . Unidentified Prototypes 56 | . . . 6 2 1 . . 2 8 . 1 . 5 . 4 1 . 2 . 1 . 1 . 2 . 10 10 . Corrupted Parts 5 | . . . . . . . . . . . . . . 3 2 . . . . . . . . . . . . . System Corruption 28 | . . . . . . . . . . . . . . 14 14 . . . . . . . . . . . . . Parts Lost 109 | . . 1 4 1 9 1 . 1 1 5 1 . . . 12 4 5 2 9 1 5 . 4 . 4 20 2 17 Power 16 | . . 1 . . 1 . . 1 . . . . . . 1 1 2 1 . . 1 . . . . 2 1 4 Propulsion 20 | . . . 1 . 4 . . . . 4 . . . . 2 . . . . . . . . . . 6 . 3 Utility 40 | . . . 2 1 2 . . . 1 1 1 . . . 3 1 2 1 4 1 3 . 2 . 3 5 1 6 Weapon 33 | . . . 1 . 2 1 . . . . . . . . 6 2 1 . 5 . 1 . 2 . 1 7 . 4 Highest Loss Streak 12 | . . 1 3 1 9 1 . 1 1 2 1 . . . 10 2 3 2 4 1 2 . 3 . 2 6 2 12 To Critical Strikes 1 | . . . . . . . . . . . . . . . . . . . . . . . . . . . . 1 Average Backups 17 | . 4 8 14 18 18 18 18 19 19 19 19 19 18 19 18 14 18 18 18 18 19 19 19 20 22 21 9 11 Power . | . . 1 2 1 1 1 1 . . 1 1 . . 1 1 1 . . . . . . . . . . . . Propulsion 1 | . . 1 2 1 1 . . 1 1 1 2 3 1 1 1 . 1 1 1 . . 1 1 . 1 1 . . Utility 10 | . 1 2 3 5 9 12 11 9 8 7 7 8 9 12 12 9 12 12 14 13 11 13 13 13 14 12 3 5 Weapon 4 | . 2 3 5 9 5 4 4 6 8 7 7 6 5 4 3 2 3 4 2 4 5 4 4 5 6 5 3 5 Tool/Special . | . . . . . . . . . . . . . . . . . . . . . . . . . . . . . Unused Backups 108 | . . 1 10 . 15 5 2 2 12 3 3 . 5 . 2 4 5 1 5 1 4 . 5 . 7 10 1 5 Power 9 | . . 1 2 . . 1 . . . . 1 . . . 1 . 1 1 . . . . . . . 1 . . Propulsion 23 | . . . 4 . 6 . . 1 2 1 . . 2 . . . . . . . . . 1 . . 6 . . Utility 48 | . . . . . 2 4 1 . 2 2 1 . 2 . 1 4 4 . 5 . 4 . 4 . 6 2 1 3 Weapon 26 | . . . 4 . 6 . 1 1 8 . 1 . 1 . . . . . . 1 . . . . 1 1 . 1 Tool/Special 2 | . . . . . 1 . . . . . . . . . . . . . . . . . . . . . . 1 Average Slot Usage (%) 92 | . 99 97 99 98 97 99 97 91 94 96 91 93 86 86 84 78 91 98 98 99 99 99 99 97 87 85 77 64 Engine 2 | . 14 11 11 11 9 6 6 3 6 1 . . . . . . 1 . . . . . . . . . . . Core 3 | . . . . . . 2 2 3 . 5 6 6 . . . 5 4 9 7 10 4 . 1 6 8 2 1 . Reactor 2 | . . . . . . . . . . . . . 5 6 5 1 3 1 3 . 5 10 8 3 1 6 6 10 Treads 14 | . 27 28 30 33 33 35 36 28 21 27 20 20 13 13 12 6 3 . . . . . . 2 10 9 6 11 Leg 6 | . . . . . . . . . . . . . . . . 9 7 23 23 21 21 21 21 16 . 5 . . Device 12 | . 21 14 13 14 16 16 3 5 12 6 6 6 6 6 3 9 14 4 15 7 18 14 21 10 19 14 14 9 Storage 6 | . 6 14 11 11 9 9 9 7 7 7 6 6 6 6 6 5 5 5 5 5 5 5 5 5 5 4 4 4 Processor 7 | . . . 6 6 . . . . 12 15 19 20 20 20 19 11 10 11 11 10 6 5 1 . . 1 4 6 Hackware 6 | . . . . . . 1 12 8 . . . . . . 3 6 2 11 1 18 11 15 13 25 20 18 11 5 Protection 3 | . . . 2 . . . . 7 1 7 6 6 6 6 5 4 5 4 4 4 3 5 4 5 . . 1 3 Energy Gun 2 | . . 2 6 . 16 14 . 4 7 . . . . . . . . . 3 3 . . . . . . 2 . Energy Cannon 3 | . . . 2 . . . 6 2 11 20 25 22 1 . . 1 3 1 8 1 . . . . . . 3 5 Ballistic Gun 12 | . 21 23 7 20 9 8 3 10 3 . . 3 21 26 23 4 17 18 7 7 18 16 16 17 16 3 . . Ballistic Cannon 1 | . . . 4 . . . . . . . . . . . . 5 . . . 4 1 . . . 1 9 . . Special Weapon 1 | . 6 1 . . . 1 9 2 . . . . . . 1 1 . 1 . 3 . 4 1 1 . 2 1 . Peak Build Rating 201 | 9 9 9 25 29 48 47 46 56 59 62 75 80 113 117 118 120 117 115 119 126 127 124 127 127 138 165 186 201 Average Rating 88 | 5 8 7 18 21 39 45 40 51 53 51 70 76 104 114 110 98 108 104 110 117 124 119 124 120 127 144 158 170 On Entrance 79 | . 9 7 9 23 20 47 45 46 55 51 62 72 80 113 113 40 113 105 101 110 121 124 115 127 119 128 153 185 Avg Prop Armor Cover (%) 10 | . 12 . 11 . 11 . . 10 16 . . . . . . 10 8 . . 3 . . . . . 4 . . Naked Turns 5 | . . . . . . . . . . . . . . . . . . . . . . . . . . . . 5 Heaviest Build 182 | 7 19 20 57 69 78 74 60 80 82 83 97 91 92 93 92 109 119 100 120 102 109 101 103 147 163 182 138 174 Greatest Support 240 | 40 40 40 60 60 104 96 96 88 88 110 110 130 160 160 160 103 100 120 120 120 106 95 105 150 150 225 240 240 Greatest Overweight (x) 7 | . . . 4 1 7 . . 2 2 1 2 . . . 1 4 4 . . 1 1 1 1 1 1 4 1 2 Average Overweight (x) . | . . . . . . . . . 1 . . . . . . . 2 . . . . 1 . . . . . . Largest Inventory Capacity 25 | 5 10 10 20 20 20 20 20 20 20 20 20 20 20 20 20 20 20 20 20 20 20 20 20 25 25 25 15 15 Average Capacity 19 | 5 7 10 17 20 20 20 20 20 20 20 20 20 20 20 20 20 20 20 20 20 20 20 20 20 25 23 13 13 Most Carried 25 | 1 9 10 20 20 20 20 20 20 20 20 20 20 20 20 20 20 20 20 20 20 20 20 20 21 25 25 15 15 Average Carried 18 | . 5 9 15 19 19 19 19 19 19 19 19 19 19 20 19 15 19 19 19 19 19 19 19 20 24 21 11 13 Final Capacity 25 | 5 10 10 20 20 20 20 20 20 20 20 20 20 20 20 20 20 20 20 20 20 20 20 20 25 25 5 15 5 Final Carried 25 | 1 9 10 20 18 20 20 20 20 19 20 20 20 20 20 18 20 20 19 20 20 20 19 20 21 25 5 12 5 Class Distribution -------------------- 17% | Botlord-Tank 13% | Scavenger-Tank 12% | Mutant 9% | Botlord-Gunner 7% | Bothacker-Tank 7% | Scavenger-Mutant 6% | Scavenger-Gunner 5% | Commander-Tank 4% | Bothacker-Gunner 3% | Gunner 3% | Tank Dominant Class ---------------- Scavenger-Mutant | -10/Materials Mutant | -10/Mines Mutant | -9/Materials Mutant | -9/Mines Scavenger-Gunner | -8/Materials Scavenger-Gunner | -8/Garrison Bothacker-Mutant | -8/Materials Tank | -7/Factory Gunner | -7/Storage Scavenger-Gunner | -7/Garrison Bothacker-Tank | -6/Factory Bothacker-Tank | -6/Extension Commander-Tank | -6/Cetus Commander-Tank | -6/Archives Scavenger-Tank | -6/Hub_04(d) Scavenger-Tank | -5/Factory Scavenger-Tank | -5/Garrison Bothacker-Gunner | -5/Factory Botlord-Tank | -5/Garrison Botlord-Gunner | -4/Factory Botlord-Gunner | -4/Garrison Botlord-Gunner | -4/Factory Botlord-Tank | -4/Garrison Botlord-Tank | -4/Factory Botlord-Tank | -4/Garrison Botlord-Tank | -3/Research Scavenger-Tank | -3/Testing Scavenger-Assassin | -2/Research Resources | -11 -10 -10 -9 -9 -8 -8 -8 -7 -7 -7 -6 -6 -6 -6 -6 -5 -5 -5 -5 -4 -4 -4 -4 -4 -4 -3 -3 -2 ----------- Run | Yrd Mat Min Mat Min Mat Gar Mat Fac Sto Gar Fac Ext Cet Arc Hub Fac Gar Fac Gar Fac Gar Fac Gar Fac Gar Res Tes Res Matter Collected 31325 | 211 211 341 730 249 1904 974 589 304 784 410 75 196 245 529 1727 1062 3417 1662 1270 631 3213 30 1882 803 1866 4144 859 1007 Remotely 119 | . . . . . . . . . . . . . . . . . . 119 . . . . . . . . . . Salvage Created 29517 | 104 526 312 1715 229 2225 910 120 363 2341 1405 386 1029 133 583 2048 449 2466 941 1548 50 2136 . 945 562 1776 1429 1773 1013 Parts 1392 | 7 28 21 85 12 132 56 9 20 102 65 8 53 8 33 88 28 76 61 61 3 87 . 60 17 79 61 70 62 Haulers Intercepted 18 | . 1 . 6 . 4 . . . 5 . . . . . . . . . . . . . . 1 . . 1 . Recyclers Shooed 10 | . . 2 2 . . . . . . . 1 1 . . . . . 1 . 1 . . . 2 . . . . Parts Field Recycled . | . . . . . . . . . . . . . . . . . . . . . . . . . . . . . Retrieved Matter . | . . . . . . . . . . . . . . . . . . . . . . . . . . . . . Parts Self-Destructed . | . . . . . . . . . . . . . . . . . . . . . . . . . . . . . Prevented . | . . . . . . . . . . . . . . . . . . . . . . . . . . . . . Parts Restored . | . . . . . . . . . . . . . . . . . . . . . . . . . . . . . Kills | -11 -10 -10 -9 -9 -8 -8 -8 -7 -7 -7 -6 -6 -6 -6 -6 -5 -5 -5 -5 -4 -4 -4 -4 -4 -4 -3 -3 -2 ------- Run | Yrd Mat Min Mat Min Mat Gar Mat Fac Sto Gar Fac Ext Cet Arc Hub Fac Gar Fac Gar Fac Gar Fac Gar Fac Gar Res Tes Res Combat Hostiles Destroyed 516 | . 12 13 37 4 48 27 2 7 32 27 4 17 . 3 31 12 30 9 25 1 39 . 19 6 27 29 30 25 Melee 13 | . . . 5 . . . 1 . . . . . . . . . . . . . . . . . 1 . 5 1 Guns 286 | . 12 13 19 4 37 15 1 7 11 . . 2 . 3 26 1 27 9 13 . 32 . 19 6 23 3 3 . Cannons 116 | . . . 7 . . . . . 19 21 4 14 . . . 7 3 . 9 1 4 . . . 3 12 8 4 AOE 86 | . . . 6 . 9 12 . . . 6 . . . . 2 4 . . 1 . 2 . . . . 11 13 20 Classes Destroyed 24 | 2 4 2 3 . 5 2 . . . . . 1 . . . . . 1 . . . . . 1 . 2 1 . Worker 26 | . 1 . 2 . 2 . . . 1 . . . . . 3 2 . 4 . . . . . . . 2 3 6 Builder 15 | . . 1 . . 2 . 1 . . . . 1 . . 1 1 . 3 . . . . . . . . 1 4 Tunneler 6 | 1 . 1 1 . 1 . . . . . . . . . . . . . . . . . . 1 . . . 1 Hauler 18 | . 1 . 6 . 4 . . . 5 . . . . . . . . . . . . . . 1 . . 1 . Recycler 11 | 1 . . 2 . 1 . . . 1 . 1 . . . . . . 2 . . . . . . . . 3 . Operator 16 | . . . 3 . 1 . . . 1 . . . . 9 . 1 . . . . . . . . . . 1 . Watcher 14 | . . . 2 . . . . . 1 . . 3 2 . 3 . . . . . 2 . . 1 . . . . Swarmer 100 | . 2 5 13 . 10 6 . . . 4 . 4 . . 3 . 11 . 4 . 7 . 7 . 9 4 10 1 Cutter 13 | . . . . . 1 . . . . 2 . . . . . . . . . . 7 . 1 . 2 . . . Grunt 214 | . 10 2 15 3 21 12 . 5 14 8 2 9 . . 14 5 12 1 11 . 19 . 6 2 7 10 11 15 Brawler 13 | . . . . . 4 1 . . 1 . 1 . . . . . 4 . . . 1 . . . . . 1 . Duelist 16 | . . . . . . 2 1 1 2 . . . . . 1 1 . . 2 . . . . . 2 2 . 2 Protector 3 | . . . . . 1 . . . . . . . . . 1 . . . . . . . . . . . 1 . Researcher 2 | . . . . . . . . . . . . . . . . . . . . . . . . . . . 2 . Sentry 70 | . . . 9 . 8 1 1 . 10 12 1 3 . 3 4 . 3 1 3 . 4 . 1 1 4 1 . . Demolisher 3 | . . . . . . . . . . . . . . . . . . . . . . . . . . 3 . . Specialist 1 | . . . . . . . . . . . . . . . . . . . . . . . . 1 . . . . Hunter 17 | . . . . . 1 . . . . 2 . . . . . . 1 4 2 . . . . . . 2 3 2 Programmer 45 | . . . . . . 5 . 1 5 . . . . . 4 6 . 3 3 1 1 . 4 2 2 . 4 4 Heavy 3 | . . . . . 2 . . . . . . . . . . . . . . . . . . . . . . 1 Behemoth 2 | . . . . . . . . . . . . 1 . . . . . . . . . . . . 1 . . . Lightning 4 | . . . . . . . . . . . . . . . 4 . . . . . . . . . . . . . Investigator 1 | . . . . . . . . . . . . . . . . . . . . . . . . . . . 1 . Striker 8 | . . . . . . . . . . . . . . . . . . 1 . . . . . . . 7 . . Executioner 2 | . . . . . . . . . . . . . . . . . . . . . . . . . . 2 . . Assembled 6 | . . 6 . . . . . . . . . . . . . . . . . . . . . . . . . . Savage 1 | . . . . . . . . . . . . . . . 1 . . . . . . . . . . . . . Butcher 1 | . . . . . . . . . . . . . . . . . . . . . . . 1 . . . . . Best Kill Streak 15 | 2 3 5 7 3 10 6 1 3 6 8 2 7 1 5 8 4 8 10 4 1 8 . 3 2 5 7 11 15 Combat Bots Only 10 | . 3 5 6 3 7 6 1 3 5 8 2 7 . 3 6 4 8 4 4 1 8 . 3 2 5 7 9 10 Max Kills in Single Turn 6 | 1 1 2 4 2 6 3 1 1 1 2 1 3 1 2 3 3 2 2 2 1 2 . 2 2 3 2 5 4 Gunslinging 1 | . . 1 . 1 . 1 . . . . . . . . 1 . 1 . . . 1 . . 1 1 . . . Exploded 4 | . . . 3 . 4 3 . . . 2 . . . . 2 3 . . 1 . 2 . . . . 2 4 2 Melee 1 | . . . 1 . . . 1 . . . . . . . . . . . . . . . . . 1 . 1 1 Uniques/NPCs Destroyed 2 | . . . . 1 . . . . . . . . 1 . . . . . . . . . . . . . . . YI-UF0 (-9/Mines) A7 (-6/Cetus) Combat | -11 -10 -10 -9 -9 -8 -8 -8 -7 -7 -7 -6 -6 -6 -6 -6 -5 -5 -5 -5 -4 -4 -4 -4 -4 -4 -3 -3 -2 -------- Run | Yrd Mat Min Mat Min Mat Gar Mat Fac Sto Gar Fac Ext Cet Arc Hub Fac Gar Fac Gar Fac Gar Fac Gar Fac Gar Res Tes Res Hostile Shots Fired 3317 | . 64 62 182 27 202 75 26 29 213 295 27 30 6 2 234 56 138 76 147 1 149 25 128 42 144 327 153 457 Missed 982 | . 21 26 57 10 66 21 8 9 87 117 12 10 3 1 45 14 26 17 37 . 39 10 44 20 36 78 51 117 Hits 2335 | . 43 36 125 17 136 54 18 20 126 178 15 20 3 1 189 42 112 59 110 1 110 15 84 22 108 249 102 340 Melee 100 | . . 7 . . 7 3 . 2 . . 2 . . . 4 . 7 . 2 . 1 . . . 2 43 1 19 Projectile 2235 | . 43 29 125 17 129 51 18 18 126 178 13 20 3 1 185 42 105 59 108 1 109 15 84 22 106 206 101 321 AOE 51 | . . . . 17 3 . . . . 1 . . . . . 1 . . . . 1 . 5 . 1 18 1 3 Critical Strikes 116 | . . 1 7 . 7 5 2 . . 1 . 1 1 . 15 . 5 1 7 1 9 . . 2 5 24 5 17 Actively Blocked 28 | . . . . . . . . . . . . . . . . . . . . . . . . 1 . 17 4 6 Part Disruptions 1 | . . . . . . . . . . . . . . . . . . . . . . . . . 1 . . . Damage Taken 44776 | . 474 523 1425 568 2159 851 293 466 1245 1646 194 364 113 28 5621 987 1741 1074 2154 73 2245 200 1930 559 1923 7191 1750 6979 Core 5241 | . 103 91 207 41 385 131 28 15 65 175 6 32 15 . 573 139 135 120 89 . 165 13 70 37 82 887 172 1465 Absorbed by Shields 6654 | . . . . . 210 . . . . 70 . . 68 . . . 390 . 10 . . . . . 514 1415 501 3476 Reduced by Siege Mode 1709 | . . . . . . . . . . 3 2 11 . . 418 . . . . . . . . . 41 888 112 234 Ignored by Resistances 81 | . . . . . . . . . . . . . . . . . . . 81 . . . . . . . . . Regen/Repaired (Parts) 3149 | . 85 . . . . . . . . . . . . . . 467 . . . 290 . . 1257 . . 216 48 786 Core Remaining (%) 43 | 100 . 22 . 38 . . 1 . . 63 . . . . 26 . . . 51 . . . . . 68 . 18 . Volleys Fired 1750 | 5 66 36 103 16 115 51 28 18 83 64 12 28 10 18 96 83 180 54 106 25 115 20 77 36 76 105 58 66 Largest 4 | 2 2 2 2 2 3 3 2 3 3 3 4 4 4 4 4 4 4 4 4 3 4 3 4 4 4 4 3 2 Hottest 318 | 40 100 100 123 46 183 183 69 111 146 90 170 170 173 140 138 211 264 176 318 153 170 103 138 157 159 258 240 200 Shots Fired 4132 | 10 123 67 199 32 333 124 31 54 228 165 47 102 35 73 271 116 384 151 262 39 359 22 218 72 247 231 67 70 Gun 2697 | 10 115 65 134 32 328 113 4 54 102 . . 6 29 73 237 16 272 128 156 . 310 3 198 48 219 27 14 4 Cannon 1121 | . . . 62 . . . 4 . 122 158 47 94 4 . 7 86 93 6 102 23 38 . 5 4 17 160 41 48 Launcher 70 | . . . 3 . 5 9 . . . 7 . . 2 . 1 2 . . . . 1 . . . . 15 7 18 Special 244 | . 8 2 . . . 2 23 . 4 . . 2 . . 26 12 19 17 4 16 10 19 15 20 11 29 5 . Kinetic 2579 | 10 115 44 82 32 169 57 4 36 38 . . 6 29 73 237 81 272 128 124 23 335 3 198 52 234 178 . 19 Thermal 1145 | . 8 2 114 . 159 56 . 18 186 158 47 94 4 . 7 15 80 6 94 . 13 . . . . . 55 29 Explosive 60 | . . . 3 . 5 9 . . . 7 . . . . 1 2 . . . . 1 . . . . 8 6 18 Electromagnetic 113 | . . 21 . . . . 4 . . . . . 2 . . 6 13 . 40 . . . 5 . 2 16 . 4 Robot Hit Streak 34 | 4 13 9 15 18 22 11 11 12 19 14 12 22 8 14 21 17 22 9 12 15 11 5 10 13 21 34 13 14 Robot Miss Streak 11 | 1 3 5 4 1 5 3 2 4 3 3 2 4 2 3 3 5 4 11 8 4 5 3 8 4 10 3 1 4 Penetration Max 2 | . . . . . . . . . . . . . . 1 1 1 1 2 1 1 2 . 1 2 1 . . 2 Secondary Targets 56 | . . 1 2 1 10 4 . 2 . . . . . . 7 . 8 1 2 . 7 . 4 2 5 . . . Max Gunslinging Chain 2 | . . 1 1 1 1 1 . 1 . . . . . . 1 . 1 1 1 . 2 . 1 2 2 . . . Shots Hit Robots 2423 | 7 83 31 132 28 225 76 26 37 151 97 28 64 24 44 184 57 183 75 108 25 174 12 90 41 144 156 66 55 Core Hits 1259 | 3 32 22 61 10 99 41 2 14 73 62 10 36 14 25 85 38 79 41 55 4 97 . 51 12 66 66 62 99 Critical Kills 33 | . 1 . 1 . . . . . . . . 1 . 4 10 . 6 . . 1 1 . 1 1 1 1 1 3 Critical Parts Destroyed 57 | . . 1 2 . 1 . . . 1 . . . . 6 16 . 11 . 1 6 . . 1 1 6 . . 4 Critical Strikes 141 | . 1 1 8 . 13 3 . . 5 . . 1 2 10 26 5 19 . 3 7 2 . 2 2 9 10 5 7 Burn 25 | . . . 3 . 12 3 . . 4 . . . . . . . . . . . . . . . . . 3 . Meltdown 2 | . . . . . . . . . . . . 1 . . . . . . . . . . . . . . 1 . Destroy 92 | . 1 1 3 . 1 . . . 1 . . . 2 10 26 . 17 . 2 7 1 . 2 2 8 1 . 7 Blast 14 | . . . . . . . . . . . . . . . . 4 . . . . 1 . . . . 9 . . Corrupt 4 | . . . . . . . . . . . . . . . . 1 2 . 1 . . . . . . . . . Sever 3 | . . . 2 . . . . . . . . . . . . . . . . . . . . . 1 . . . Impale 1 | . . . . . . . . . . . . . . . . . . . . . . . . . . . 1 . Melee Attacks 236 | . . . 17 1 1 26 15 2 4 4 . . 7 . . . . . . . . . 35 1 47 13 44 19 Impact 8 | . . . . . . . . . 4 4 . . . . . . . . . . . . . . . . . . Slashing 155 | . . . 17 1 1 26 15 2 . . . . 7 . . . . . . . . . 35 1 47 3 . . Piercing 73 | . . . . . . . . . . . . . . . . . . . . . . . . . . 10 44 19 Sneak Attacks 19 | . . . . . . . 3 . . . . . 7 . . . . . . . . . . . 1 2 6 . Combat Hostiles . | . . . . . . . . . . . . . . . . . . . . . . . . . . . . . Follow-up Attacks . | . . . . . . . . . . . . . . . . . . . . . . . . . . . . . Damage Inflicted 79646 | 63 679 483 2961 433 5513 2769 334 671 3856 3763 751 1944 1023 1307 5462 2294 4296 2031 3469 245 5195 71 2589 967 4239 7512 6857 7869 Guns 36953 | 56 673 471 1408 426 4066 1472 17 671 1490 . . 110 409 1307 4512 339 3400 1965 1965 . 4627 51 2511 791 3487 391 326 12 Cannons 21202 | . . . 774 . . . 126 . 2364 2668 751 1821 . . 139 1402 872 34 1458 245 406 . 78 43 392 4695 1816 1118 Explosions 17615 | . . . 374 . 1441 1297 . . . 1068 . . 183 . 733 553 . . 46 . 162 . . . . 2252 3078 6428 Melee 3456 | . . . 402 . . . 180 . . 25 . . 431 . . . . . . . . . . . 360 142 1637 279 Ramming 420 | 7 6 12 3 7 6 . 11 . 2 2 . 13 . . 78 . 24 32 . . . 20 . 133 . 32 . 32 Kinetic 38444 | 56 673 302 879 426 1745 707 17 401 396 . . 110 409 1307 4512 1528 3400 1965 1578 245 4875 51 2511 834 3879 4951 . 687 Thermal 19663 | . . . 1303 . 2321 765 . 270 3458 2668 751 1821 . . 139 . 498 34 1238 . 158 . . . . . 3166 1073 Explosive 14277 | . . . 374 . 1441 1297 . . . 1068 . . . . 66 553 . . . . 162 . . . . 1476 2054 5786 Electromagnetic 3386 | . . 169 . . . . 126 . . . . . 183 . 667 213 374 . 653 . . . 78 . . 911 . 12 Impact 25 | . . . . . . . . . . 25 . . . . . . . . . . . . . . . . . . Slashing 1515 | . . . 402 . . . 180 . . . . . 431 . . . . . . . . . . . 360 142 . . Piercing 1916 | . . . . . . . . . . . . . . . . . . . . . . . . . . . 1637 279 Highest Corruption 46 | . . . . . . 3 3 5 5 3 5 5 5 9 46 5 14 17 23 . 1 1 2 2 3 6 11 14 Average Corruption 5 | . . . . . . 1 3 5 2 3 3 5 5 4 6 4 7 14 21 . 1 1 1 2 2 5 7 7 Corruption Purged 24 | . . . . . . . . . 5 . . . . 19 . . . . . . . . . . . . . . Corruption Blocked . | . . . . . . . . . . . . . . . . . . . . . . . . . . . . . Effects 510 | . . . . . . 8 17 . 7 37 7 37 8 15 18 22 76 56 74 . 3 2 27 11 28 22 26 9 Message Errors 117 | . . . . . . 1 3 . . 14 3 9 2 1 3 5 15 9 15 . . . 10 4 8 5 5 5 Matter Fused 96 | . . . . . . 1 5 . 1 8 1 11 3 3 1 8 16 14 11 . . . 2 . 4 2 3 2 Heat Flow Errors 69 | . . . . . . 1 2 . 1 1 1 2 1 2 1 2 10 7 13 . 1 1 8 3 4 3 5 . Energy Discharges 65 | . . . . . . 3 4 . 3 4 . 5 1 2 5 . 7 9 5 . 1 1 1 1 5 2 5 1 Parts Rejected 12 | . . . . . . 1 . . . . 1 1 . . 2 . . 1 1 . . . 2 . . 1 1 1 Parts Fused 2 | . . . . . . . . . . . . . . . . . . . 2 . . . . . . . . . Data Loss (minor) 63 | . . . . . . 1 . . 1 3 . 4 . 6 1 3 14 8 7 . . . 3 2 4 3 3 . Data Loss (major) 26 | . . . . . . . 1 . 1 3 . 3 . . 2 1 5 3 3 . . . . . 1 1 2 . Misfires 22 | . . . . . . . 2 . . 2 . . 1 1 1 1 3 2 4 . 1 . 1 . 1 1 1 . Alerts 9 | . . . . . . . . . . 1 . 1 . . . 1 2 1 1 . . . . 1 . 1 . . Misdirections 1 | . . . . . . . . . . . . . . . . . . 1 . . . . . . . . . . Weapon Failures 28 | . . . . . . . . . . 1 1 1 . . 2 1 4 1 12 . . . . . 1 3 1 . Overload Shots 7 | . . . . . . . . . 1 1 . 1 . . 1 . . . . . . . . . . . 3 . Effects 1 | . . . . . . . . . . . . . . . . . . . . . . . . . . . 1 . Short Circuit 1 | . . . . . . . . . . . . . . . . . . . . . . . . . . . 1 . Overflow Damage 1646 | . . . 12 . 92 98 20 . 16 27 12 7 . . 23 85 25 . 20 . . . . 27 59 229 668 226 Projectiles 600 | . . . 5 . . . . . 16 27 12 7 . . . 85 25 . 20 . . . . . . 95 269 39 Explosions 646 | . . . 7 . 92 98 . . . . . . . . 23 . . . . . . . . . . 134 105 187 Melee 400 | . . . . . . . 20 . . . . . . . . . . . . . . . . 27 59 . 294 . Knockbacks 82 | . . . 4 . . . . . . . . . . . 1 11 . . . 3 4 . . 2 1 53 . 3 Impact 3 | . . . . . . . . . . . . . . . 1 . . . . . . . . 2 . . . . Kinetic 68 | . . . 4 . . . . . . . . . . . . 10 . . . 3 2 . . . 1 45 . 3 Secondary 11 | . . . . . . . . . . . . . . . . 1 . . . . 2 . . . . 8 . . Self-Inflicted Damage 1619 | . . . . . . . . . . 102 . . . . 190 . . . . . . . . . . 106 230 991 Shots 32 | . . . . . . . . . . 4 . . . . 3 . . . . . . . . . . 4 4 17 Rammed 29 | 1 3 3 2 1 2 . 1 . 1 1 . 1 . . 6 1 . . . . . . . . . 2 . 4 Targets Rammed 45 | 1 4 3 2 1 2 . 1 . 1 1 . 1 . . 6 1 3 4 . . . 2 . 6 . 2 . 4 Kicked 15 | . . . . . . . . . . . . . . . . . 3 4 . . . 2 . 6 . . . . Crushed 1 | . 1 . . . . . . . . . . . . . . . . . . . . . . . . . . . Highest Temperature 410 | . 60 168 105 . 356 204 185 193 241 158 290 163 88 216 281 221 395 282 342 300 236 170 180 182 199 345 410 359 Average Temperature 84 | . 14 73 16 . 106 94 52 91 56 26 50 47 48 54 79 39 95 104 100 131 81 89 62 48 78 91 114 165 Received Heat Transfer 6978 | . 219 87 456 39 757 279 171 144 417 352 36 69 9 . 678 183 435 36 483 . 547 . 195 139 268 520 107 352 Effects 16 | . . . . . . . . . . . . . . . . . 2 1 3 . . . . . . . 5 5 Shutdowns 1 | . . . . . . . . . . . . . . . . . . . . . . . . . . . 1 . Energy Bleed 5 | . . . . . . . . . . . . . . . . . . 1 2 . . . . . . . 1 1 Interference 5 | . . . . . . . . . . . . . . . . . . . . . . . . . . . 3 2 Matter Decay 3 | . . . . . . . . . . . . . . . . . 2 . 1 . . . . . . . . . Damage (minor) 2 | . . . . . . . . . . . . . . . . . . . . . . . . . . . . 2 Siege Activations 18 | . . . . . . . . . . 1 1 3 . . 5 . . . . . . . . . 3 1 2 2 Total Turns 371 | . . . . . . . . . . 24 12 28 . . 119 . . . . . . . . . 33 49 52 54 Longest Duration 92 | . . . . . . . . . . 24 12 22 . . 92 . . . . . . . . . 25 49 35 30 Martial Activations . | . . . . . . . . . . . . . . . . . . . . . . . . . . . . . Shielding Activations . | . . . . . . . . . . . . . . . . . . . . . . . . . . . . . Robots Disrupted . | . . . . . . . . . . . . . . . . . . . . . . . . . . . . . Combat Hostiles . | . . . . . . . . . . . . . . . . . . . . . . . . . . . . . Robots Corrupted 10 | . . . . . . . . . . . . . . . 2 . 2 . 2 . 1 . . . . 3 . . Combat Hostiles 8 | . . . . . . . . . . . . . . . 2 . . . 2 . 1 . . . . 3 . . Parts Fried 19 | . . . . . . . . . . . . . . . 6 1 3 . 3 . 3 . . . . 3 . . Impact Corruptions 2 | . . . . . . . . . . . . . . . . . . . . . 1 . . 1 . . . . Robots Melted 9 | . . . . . 3 . . . 2 . . 2 . . 1 . . . . . . . . . . . 1 . Combat Hostiles 7 | . . . . . 2 . . . 2 . . 1 . . 1 . . . . . . . . . . . 1 . Parts Melted 69 | . . . 8 . 15 4 . . 14 7 1 8 . . 1 . 2 . 2 . . . . . 1 . 5 1 Heat Transferred 28781 | . . . 2738 . 4978 1591 . 481 5198 3663 1101 2674 . . 110 . 750 50 1648 . 185 . . . . . 2654 960 Parts Sabotaged . | . . . . . . . . . . . . . . . . . . . . . . . . . . . . . Parts Stolen . | . . . . . . . . . . . . . . . . . . . . . . . . . . . . . Parts Stripped . | . . . . . . . . . . . . . . . . . . . . . . . . . . . . . Power Chain Reactions 3 | . . . . . . . . . . . . . . . . . . . 1 . . . . . . . . 2 Alert | -11 -10 -10 -9 -9 -8 -8 -8 -7 -7 -7 -6 -6 -6 -6 -6 -5 -5 -5 -5 -4 -4 -4 -4 -4 -4 -3 -3 -2 ------- Run | Yrd Mat Min Mat Min Mat Gar Mat Fac Sto Gar Fac Ext Cet Arc Hub Fac Gar Fac Gar Fac Gar Fac Gar Fac Gar Res Tes Res Maximum Alert Level 5 | . . . 2 1 2 4 2 . 2 4 2 2 1 . 2 1 5 3 4 2 4 3 5 4 5 3 2 2 Low Security (%) 29 | 100 100 100 49 92 9 . . 100 64 . . 13 4 100 78 67 4 . . . 2 . . . . . 24 55 Level 1 18 | . . . 27 7 28 4 31 . 28 1 . 82 95 . 15 32 16 40 5 41 16 . 3 . . 9 27 26 Level 2 24 | . . . 23 . 62 43 68 . 7 15 100 3 . . 6 . 23 29 47 58 28 61 18 . . 65 48 18 Level 3 15 | . . . . . . 49 . . . 68 . . . . . . 32 29 37 . 21 38 30 46 30 25 . . Level 4 10 | . . . . . . 1 . . . 14 . . . . . . 22 . 9 . 29 . 38 53 51 . . . Level 5 1 | . . . . . . . . . . . . . . . . . . . . . . . 9 . 17 . . . High Security . | . . . . . . . . . . . . . . . . . . . . . . . . . . . . . Max Security . | . . . . . . . . . . . . . . . . . . . . . . . . . . . . . Peak Influence 1740 | 10 74 112 582 222 680 1174 585 138 510 1198 628 412 336 169 558 285 1618 862 1105 579 1333 722 1695 1277 1740 978 578 498 Initial 978 | . . . 9 222 . 362 572 138 . 328 628 209 172 82 . 249 119 849 279 579 197 699 333 889 877 978 459 308 Average 505 | 1 19 23 253 70 397 774 447 24 169 854 523 297 259 59 117 193 790 560 699 431 807 626 1061 1100 1323 601 337 206 Influence Increases 21893 | 10 344 182 1175 71 1493 842 240 150 1028 1180 112 753 264 240 2106 507 1689 930 1016 127 1266 87 1482 816 1023 1172 894 694 Destroy 0b10 Robot/C 10063 | . 240 140 740 60 940 560 105 105 525 585 60 360 120 60 690 210 615 315 495 45 669 . 468 276 456 540 384 300 Destroy 0b10 Robot/NC 592 | 10 10 10 80 . 60 . 12 . 44 8 4 20 8 36 48 24 28 44 4 16 6 6 . 27 9 15 30 33 Destroy Leader 1698 | . 52 30 186 10 228 20 52 24 164 16 16 38 . . 216 52 16 106 56 20 38 2 36 66 54 108 44 48 Allied During Kill 2729 | . . . . . . 2 12 . 135 208 . 232 128 94 543 14 114 254 78 26 83 . 322 265 74 145 . . Successful Hack 602 | . 4 . 14 . 19 . . 18 17 11 5 59 . . 46 59 17 155 12 6 18 3 35 . . 39 20 45 Select Force Hacks 90 | . 30 . 60 . . . . . . . . . . . . . . . . . . . . . . . . . Disable Machine 858 | . . . 60 . 60 . . . 96 48 . 12 . 36 240 48 24 . 12 12 30 27 9 54 9 9 54 18 Anti-Garrison Action 2344 | . . . . . . 125 . . . 189 . . . . . . 677 . 265 . 278 . 420 . 300 90 . . Destroy Structure 2077 | . 8 2 5 1 51 75 11 3 35 79 3 32 8 14 275 100 66 56 58 2 144 40 165 128 94 172 200 250 Partial Spotted 93 | . . . . . . . . . . . 12 . . . . . . . . . . 9 . . . . 72 . Lose Combat Pursuer 747 | . . . 30 . 135 60 48 . 12 36 12 . . . 48 . 132 . 36 . . . 27 . 27 54 90 . Influence Decreases 21553 | 10 344 158 629 641 935 226 1108 456 522 488 882 872 367 446 1595 848 241 2149 310 950 215 944 263 1258 536 2094 1163 903 Entered New Map 7691 | . . . 15 348 . 196 602 168 . 178 570 219 137 124 . 262 51 769 120 526 85 634 143 806 376 762 359 241 Time Decay 8152 | 10 344 158 584 283 545 . 386 288 472 . 302 553 230 262 626 526 . 470 . 294 . 140 . 342 . 652 343 342 Lost Part 1060 | . . . 30 10 90 10 . . 10 50 10 . . . 120 40 50 20 90 10 50 . 40 . 40 200 20 170 Lost Ally 1959 | . . . . . . 20 120 . 40 260 . 100 . 60 249 20 140 140 100 120 80 20 80 110 120 180 . . Purge Threat 2691 | . . . . . 300 . . . . . . . . . 600 . . 750 . . . 150 . . . 300 441 150 Squads Dispatched 90 | . 4 . 4 . 9 . 1 2 8 . . 1 . . 14 5 . 6 . 2 . 1 . 10 . 7 7 9 Investigation 18 | . 2 . 2 . . . . 1 1 . . 1 . . 1 2 . 2 . . . . . 1 . 4 . 1 Extermination 23 | . . . . . . . . 1 4 . . . . . 7 3 . 2 . 2 . . . 1 . . 2 1 Reinforcement 37 | . 2 . 2 . 5 . 1 . 1 . . . . . 5 . . 2 . . . 1 . 4 . 3 4 7 Assault 9 | . . . . . 1 . . . 2 . . . . . 1 . . . . . . . . 4 . . 1 . Garrison 3 | . . . . . 3 . . . . . . . . . . . . . . . . . . . . . . . Intercept . | . . . . . . . . . . . . . . . . . . . . . . . . . . . . . Searches Triggered . | . . . . . . . . . . . . . . . . . . . . . . . . . . . . . Unchained Authorized 2 | . . . . . . . . . . . . . . . . . . . . . . . . 1 . . . 1 Construction Impeded 6 | . . . . . 1 . . . . . . . . . 1 . . . . . . . . 1 . . 1 2 Haulers Reinforced 7 | . . . . . . . . . . . . . . . . . . 1 . . . . . 2 . 2 1 1 Active Scanning Responses . | . . . . . . . . . . . . . . . . . . . . . . . . . . . . . Cargo Convoy Interrupts 1 | . . . . . . . . . . . . . . . . . . . . . . . . . . . . 1 Stealth | -11 -10 -10 -9 -9 -8 -8 -8 -7 -7 -7 -6 -6 -6 -6 -6 -5 -5 -5 -5 -4 -4 -4 -4 -4 -4 -3 -3 -2 --------- Run | Yrd Mat Min Mat Min Mat Gar Mat Fac Sto Gar Fac Ext Cet Arc Hub Fac Gar Fac Gar Fac Gar Fac Gar Fac Gar Res Tes Res Distress Signals 42 | . 3 . 3 . 8 . 3 . 3 . . 1 2 . 2 4 . 1 . 1 . 1 . 1 . 5 2 2 Communications Jammed 202 | . . . . . . . . . . . . . . . 5 . . 9 . 3 4 . 4 84 . 68 25 . Distress Signals 200 | . . . . . . . . . . . . . . . 5 . . 8 . 2 4 . 4 84 . 68 25 . Times Spotted 966 | . 24 21 53 4 75 26 23 8 48 38 7 27 9 7 73 29 61 30 35 11 47 13 44 31 39 74 49 60 Peak Tracking Total 24 | . 5 7 6 3 8 4 5 3 5 6 3 7 5 1 8 7 16 4 5 4 4 4 5 10 9 12 10 24 Tactical Retreats 45 | . . 2 2 . 5 4 4 . 1 2 1 . . . 4 . 5 . 2 . . . 1 . 1 5 6 . Traps | -11 -10 -10 -9 -9 -8 -8 -8 -7 -7 -7 -6 -6 -6 -6 -6 -5 -5 -5 -5 -4 -4 -4 -4 -4 -4 -3 -3 -2 ------- Run | Yrd Mat Min Mat Min Mat Gar Mat Fac Sto Gar Fac Ext Cet Arc Hub Fac Gar Fac Gar Fac Gar Fac Gar Fac Gar Res Tes Res Traps Triggered 57 | . 1 1 2 . . . . 3 1 5 1 1 . . . . 7 . 7 . 8 . 2 4 10 1 2 1 Indirectly . | . . . . . . . . . . . . . . . . . . . . . . . . . . . . . Trap Hack Attempts . | . . . . . . . . . . . . . . . . . . . . . . . . . . . . . Triggered . | . . . . . . . . . . . . . . . . . . . . . . . . . . . . . Disarmed . | . . . . . . . . . . . . . . . . . . . . . . . . . . . . . Reprogrammed . | . . . . . . . . . . . . . . . . . . . . . . . . . . . . . Reused . | . . . . . . . . . . . . . . . . . . . . . . . . . . . . . Traps Extracted . | . . . . . . . . . . . . . . . . . . . . . . . . . . . . . Installed . | . . . . . . . . . . . . . . . . . . . . . . . . . . . . . Triggered . | . . . . . . . . . . . . . . . . . . . . . . . . . . . . . Machines | -11 -10 -10 -9 -9 -8 -8 -8 -7 -7 -7 -6 -6 -6 -6 -6 -5 -5 -5 -5 -4 -4 -4 -4 -4 -4 -3 -3 -2 ---------- Run | Yrd Mat Min Mat Min Mat Gar Mat Fac Sto Gar Fac Ext Cet Arc Hub Fac Gar Fac Gar Fac Gar Fac Gar Fac Gar Res Tes Res Machines Disabled 110 | . . . 4 . 4 1 . . 8 8 . 1 . 3 20 4 6 . 6 1 9 3 7 6 9 2 6 2 Max in Single Turn 8 | . . . 1 . 1 1 . . 1 1 . 1 . 1 8 1 1 . 1 . 1 . 1 3 1 . 1 1 Garrison Access 6 | . . . . . . . 1 2 . . . . . . . . . . . . . . . 1 . 2 . . Garrison Relay 30 | . . . . . . 1 . . . 3 . . . . . . 4 . 5 . 5 . 6 . 6 . . . Network Hub 4 | . . . . . . . . . . . . . . . 4 . . . . . . . . . . . . . Machines Repaired . | . . . . . . . . . . . . . . . . . . . . . . . . . . . . . Machines Dismantled . | . . . . . . . . . . . . . . . . . . . . . . . . . . . . . Machines Sabotaged . | . . . . . . . . . . . . . . . . . . . . . . . . . . . . . Overloaded Fab Kills . | . . . . . . . . . . . . . . . . . . . . . . . . . . . . . Hacking | -11 -10 -10 -9 -9 -8 -8 -8 -7 -7 -7 -6 -6 -6 -6 -6 -5 -5 -5 -5 -4 -4 -4 -4 -4 -4 -3 -3 -2 --------- Run | Yrd Mat Min Mat Min Mat Gar Mat Fac Sto Gar Fac Ext Cet Arc Hub Fac Gar Fac Gar Fac Gar Fac Gar Fac Gar Res Tes Res Machines Accessed 119 | . 8 . 10 . 10 1 1 5 5 3 3 10 . . 13 10 2 9 3 3 1 3 3 2 1 5 4 4 Terminals 80 | . 6 . 7 . 7 1 . 2 4 3 1 10 . . 13 2 2 5 3 . 1 1 3 1 1 1 3 3 Fabricators 4 | . . . . . . . . . . . . . . . . 2 . 2 . . . . . . . . . . Repair Stations 7 | . 1 . . . 1 . . . . . . . . . . 1 . 1 . 2 . . . . . 1 . . Recycling Units 7 | . 1 . 2 . . . . 1 . . 1 . . . . 2 . . . . . . . . . . . . Scanalyzers 10 | . . . 1 . 1 . . . . . 1 . . . . 2 . . . . . 1 . . . 2 1 1 Garrison Access 11 | . . . . . 1 . 1 2 1 . . . . . . 1 . 1 . 1 . 1 . 1 . 1 . . Total Hacks 380 | . 22 . 26 . 28 2 1 10 10 5 7 18 . . 38 44 3 58 7 8 5 13 15 3 4 18 16 19 Successful 174 | . 12 . 15 . 15 1 1 5 4 1 3 10 . . 16 23 2 23 2 4 2 4 6 1 1 8 8 7 Failed 202 | . 10 . 10 . 12 1 . 5 6 4 4 8 . . 22 21 1 35 5 4 3 8 9 2 3 10 7 12 Catastrophic 61 | . 2 . 3 . 2 . . 1 2 2 2 2 . . 6 4 . 16 2 1 1 3 3 1 1 3 1 3 Database Lockouts 4 | . . . 1 . 1 . . . . . . . . . . . . . . . . 1 . . . . 1 . Manual 148 | . 18 . 13 . 16 . . 1 1 1 2 . 1 . 30 10 . 21 . . 4 9 8 . 2 2 4 5 Terminals 260 | . 16 . 19 . 18 2 . 5 9 5 1 18 . . 38 13 3 36 7 . 5 9 15 2 4 6 14 15 Fabricators 19 | . . . . . . . . . . . . . . . . 6 . 13 . . . . . . . . . . Repair Stations 28 | . 4 . . . 1 . . . . . . . . . . 6 . 8 . 7 . . . . . 2 . . Recycling Units 20 | . 2 . 3 . . . . 3 . . 4 . . . . 8 . . . . . . . . . . . . Scanalyzers 42 | . . . 4 . 8 . . . . . 2 . . . . 10 . . . . . 3 . . . 9 2 4 Garrison Access 11 | . . . . . 1 . 1 2 1 . . . . . . 1 . 1 . 1 . 1 . 1 . 1 . . Terminal Hacks 66 | . 1 . 5 . 4 1 . 2 2 1 . 10 . . 6 3 2 7 2 . 1 1 4 . 1 2 7 4 Prototype ID Bank 6 | . . . 2 . . . . . . . . . . . 1 2 . 1 . . . . . . . . . . Open Door 12 | . . . . . . . . . 2 . . 8 . . . . 1 . 1 . . . . . . . . . Branch Access Points 1 | . . . . . 1 . . . . . . . . . . . . . . . . . . . . . . . Emergency Access Points 6 | . . . . . . . . . . 1 . . . . . . 1 . . . 1 . 1 . 1 . . 1 Terminal Index 5 | . 1 . . . . . . 1 . . . . . . 1 . . . . . . . . . . . 2 . Repair Station Index 1 | . . . . . . . . . . . . . . . . . . . . . . . . . . . 1 . Recycling Unit Index 1 | . . . 1 . . . . . . . . . . . . . . . . . . . . . . . . . Garrison Index 1 | . . . . . . . . . . . . . . . . . . . . . . . . . . . . 1 Unreport Threat 14 | . . . . . 2 . . . . . . . . . 3 . . 2 . . . 1 . . . 2 3 1 Locate Traps 2 | . . . . . . . . . . . . . . . . . . 1 . . . . . . . . . 1 Hauler Manifests 6 | . . . 1 . 1 . . . . . . . . . 1 1 . 1 . . . . . . . . 1 . Registered Components 1 | . . . . . . . . . . . . 1 . . . . . . . . . . . . . . . . Zone Layout 5 | . . . 1 . . . . 1 . . . 1 . . . . . 2 . . . . . . . . . . Garrison Registry 1 | . . . . . . 1 . . . . . . . . . . . . . . . . . . . . . . Patrol Navigation 2 | . . . . . . . . . . . . . . . . . . . 1 . . . 1 . . . . . Security Stations 2 | . . . . . . . . . . . . . . . . . . . . . . . 2 . . . . . Fabricator Hacks 10 | . . . . . . . . . . . . . . . . 3 . 7 . . . . . . . . . . Network Status 1 | . . . . . . . . . . . . . . . . 1 . . . . . . . . . . . . Load Schematic 5 | . . . . . . . . . . . . . . . . 2 . 3 . . . . . . . . . . Build 4 | . . . . . . . . . . . . . . . . . . 4 . . . . . . . . . . Repair Station Hacks 11 | . 3 . . . . . . . . . . . . . . 3 . 2 . 3 . . . . . . . . Scan Component 8 | . 2 . . . . . . . . . . . . . . 2 . 2 . 2 . . . . . . . . Repair 3 | . 1 . . . . . . . . . . . . . . 1 . . . 1 . . . . . . . . Recycling Unit Hacks 4 | . 1 . . . . . . 1 . . 1 . . . . 1 . . . . . . . . . . . . Retrieve Components 4 | . 1 . . . . . . 1 . . 1 . . . . 1 . . . . . . . . . . . . Scanalyzer 19 | . . . 2 . 4 . . . . . . . . . . 5 . . . . . 1 . . . 4 1 2 Insert Component 5 | . . . . . 2 . . . . . . . . . . 3 . . . . . . . . . . . . Analyze 2 | . . . . . 1 . . . . . . . . . . 1 . . . . . . . . . . . . Retrieve Study 12 | . . . 2 . 1 . . . . . . . . . . 1 . . . . . 1 . . . 4 1 2 Garrison Access Hacks 11 | . . . . . 1 . 1 2 1 . . . . . . 1 . 1 . 1 . 1 . 1 . 1 . . Unlock Access 8 | . . . . . 1 . . . 1 . . . . . . 1 . 1 . 1 . 1 . 1 . 1 . . Seal Access 3 | . . . . . . . 1 2 . . . . . . . . . . . . . . . . . . . . Unauthorized Hacks 53 | . 7 . 8 . 6 . . . 1 . 2 . . . 10 7 . 6 . . 1 1 2 . . 1 . 1 Terminals 39 | . 6 . 6 . 6 . . . 1 . . . . . 10 1 . 4 . . 1 1 2 . . . . 1 Botnet 13 | . 1 . 1 . 1 . . . . . . . . . 3 . . 2 . . 1 1 2 . . . . 1 Operators 2 | . . . . . . . . . . . . . . . . . . 2 . . . . . . . . . . Skim 24 | . 5 . 5 . 5 . . . 1 . . . . . 7 1 . . . . . . . . . . . . Fabricators 4 | . . . . . . . . . . . . . . . . 2 . 2 . . . . . . . . . . Prioritize 2 | . . . . . . . . . . . . . . . . . . 2 . . . . . . . . . . Recompile 2 | . . . . . . . . . . . . . . . . 2 . . . . . . . . . . . . Repair Stations 1 | . . . . . . . . . . . . . . . . . . . . . . . . . . 1 . . Patch 1 | . . . . . . . . . . . . . . . . . . . . . . . . . . 1 . . Recycling Units 9 | . 1 . 2 . . . . . . . 2 . . . . 4 . . . . . . . . . . . . Reject 2 | . . . . . . . . . . . 1 . . . . 1 . . . . . . . . . . . . Recyclers 1 | . . . . . . . . . . . . . . . . 1 . . . . . . . . . . . . Mask 3 | . . . . . . . . . . . 1 . . . . 2 . . . . . . . . . . . . Tunnel 3 | . 1 . 2 . . . . . . . . . . . . . . . . . . . . . . . . . Scanalyzers . | . . . . . . . . . . . . . . . . . . . . . . . . . . . . . Garrison Access . | . . . . . . . . . . . . . . . . . . . . . . . . . . . . . Data Cores Recovered 4 | . . . 2 . . . . . . . . . . . 1 1 . . . . . . . . . . . . Used 1 | . . . 1 . . . . . . . . . . . . . . . . . . . . . . . . . Hacking Detections 86 | . 7 . 8 . 10 1 . 3 3 3 3 6 . . 12 5 . 7 2 1 1 1 2 1 1 3 2 4 Full Trace Events 3 | . . . . . . . . . 1 . . . . . . . . 2 . . . . . . . . . . Feedback Events . | . . . . . . . . . . . . . . . . . . . . . . . . . . . . . Feedback Blocked . | . . . . . . . . . . . . . . . . . . . . . . . . . . . . . Robot Schematics Acquired 3 | . . . . . . . . . . . . . . . . . . . . . . . . . . . 3 . Robots Built . | . . . . . . . . . . . . . . . . . . . . . . . . . . . . . Authchips . | . . . . . . . . . . . . . . . . . . . . . . . . . . . . . Time . | . . . . . . . . . . . . . . . . . . . . . . . . . . . . . Total Robot Build Rating . | . . . . . . . . . . . . . . . . . . . . . . . . . . . . . Part Schematics Acquired 9 | . . . . . 1 . . . . . . . . . . 1 . . . . . . . . . . 7 . Parts Built 4 | . . . . . . . . . . . . . . . . . . 4 . . . . . . . . . . Authchips 2 | . . . . . . . . . . . . . . . . . . 2 . . . . . . . . . . Time 273 | . . . . . . . . . . . . . . . . . . 273 . . . . . . . . . . Total Part Build Rating 33 | . . . . . . . . . . . . . . . . . . 33 . . . . . . . . . . Part Studies Acquired 11 | . . . 1 . 1 . . . . . . . . . . 1 . . . . . 1 . . . 4 1 2 Parts Repaired 3 | . 1 . . . . . . . . . . . . . . 1 . . . 1 . . . . . . . . Time 240 | . 26 . . . . . . . . . . . . . . 78 . . . 136 . . . . . . . . Parts Recycled . | . . . . . . . . . . . . . . . . . . . . . . . . . . . . . Recycled Matter . | . . . . . . . . . . . . . . . . . . . . . . . . . . . . . Retrieved Matter . | . . . . . . . . . . . . . . . . . . . . . . . . . . . . . Retrieved Components 5 | . 3 . . . . . . . . . 1 . . . . 1 . . . . . . . . . . . . Parts Scanalyzed 4 | . . . . . 2 . . . . . . . . . . 2 . . . . . . . . . . . . Part Schematics Acquired 2 | . . . . . 1 . . . . . . . . . . 1 . . . . . . . . . . . . Parts Damaged 2 | . . . . . . . . . . . . . . . . 2 . . . . . . . . . . . . Bothacking | -11 -10 -10 -9 -9 -8 -8 -8 -7 -7 -7 -6 -6 -6 -6 -6 -5 -5 -5 -5 -4 -4 -4 -4 -4 -4 -3 -3 -2 ------------ Run | Yrd Mat Min Mat Min Mat Gar Mat Fac Sto Gar Fac Ext Cet Arc Hub Fac Gar Fac Gar Fac Gar Fac Gar Fac Gar Res Tes Res Used RIF Installer 8 | . . . . . . 2 . . . 1 . . . . . . 1 . 1 . 1 . 1 . 1 . . . Coupler Efficiency 1 | . . . . . . . . . . . . . . . . . 1 . . . . . . . . . . . Threat Obfuscator 2 | . . . . . . 1 . . . . . . . . . . . . . . 1 . . . . . . . Zone Cloak 2 | . . . . . . . . . . . . . . . . . . . . . . . 1 . 1 . . . Robot Detection 1 | . . . . . . . . . . . . . . . . . . . 1 . . . . . . . . . Patrol Navigation 1 | . . . . . . . . . . 1 . . . . . . . . . . . . . . . . . . Robots Hacked 112 | . . . . . . 1 11 . 2 . . . . . 10 6 11 5 3 8 5 7 8 10 6 15 4 . Non-combat 29 | . . . . . . . . . . . . . . . 7 4 . 2 . 6 . 3 1 2 . 2 2 . Combat 83 | . . . . . . 1 11 . 2 . . . . . 3 2 11 3 3 2 5 4 7 8 6 13 2 . Robot Hacks Applied 134 | . . . . . . 1 12 . 2 . . . . . 19 9 11 9 3 9 5 7 8 12 6 16 5 . parse_system 9 | . . . . . . . . . . . . . . . 5 2 . . . . . . . 1 . 1 . . no_distress 1 | . . . . . . . . . . . . . . . 1 . . . . . . . . . . . . . deconstruct_machine 5 | . . . . . . . . . . . . . . . 5 . . . . . . . . . . . . . drop_inventory 8 | . . . . . . . . . . . . . . . . 1 . 1 . 2 . . . 1 . 2 1 . locate_stockpiles 1 | . . . . . . . . . . . . . . . . . . . . 1 . . . . . . . . ignore_parts 3 | . . . . . . . . . . . . . . . 1 . . . . 2 . . . . . . . . purge_threat 5 | . . . . . . . . . . . . . . . 1 . . 4 . . . . . . . . . . disarm_traps 1 | . . . . . . . . . . . . . . . . . . 1 . . . . . . . . . . map_route 5 | . . . . . . . . . . . . . . . 1 1 . . . . . 2 . . . . 1 . mark_security 2 | . . . . . . . . . . . . . . . . 1 . . . 1 . . . . . . . . disable_scanner 2 | . . . . . . . . . . . . . . . . . . . . . . . . . . . 2 . locate_prototypes 1 | . . . . . . . . . . . . . . . . . . . . . . . . . . . 1 . find_garrison 4 | . . . . . . . . . . . . . . . 1 1 . . . . . . . 1 . 1 . . link_fov 1 | . . . . . . . . . . . . . . . . . . . . . . 1 . . . . . . disrupt_area 2 | . . . . . . . 1 . . . . . . . . . . . . . . . 1 . . . . . spike_heat 2 | . . . . . . . 2 . . . . . . . . . . . . . . . . . . . . . amplify_resonance 15 | . . . . . . . 1 . . . . . . . . . . . . . 2 1 3 4 3 1 . . reboot_system 2 | . . . . . . . 1 . . . . . . . . . . . 1 . . . . . . . . . go_dormant 1 | . . . . . . . . . . . . . . . . 1 . . . . . . . . . . . . overwrite_iff 4 | . . . . . . . . . . . . . . . . . 1 . . . . . . . 2 1 . . streamctrl_high 3 | . . . . . . . . . 1 . . . . . . . 1 . . . 1 . . . . . . . formatsys_low 4 | . . . . . . . . . . . . . . . 1 1 . . . 1 . . 1 . . . . . formatsys_high 53 | . . . . . . 1 7 . 1 . . . . . 3 1 9 3 2 2 2 3 3 5 1 10 . . Relay Couplers Released 138 | . . . . . . 4 . . 3 13 . . . . 3 . 17 . 20 . 19 . 25 4 24 2 . 4 Machine Destruction 125 | . . . . . . 4 . . . 13 . . . . . . 17 . 20 . 19 . 25 4 21 2 . . Programmers 13 | . . . . . . . . . 3 . . . . . 3 . . . . . . . . . 3 . . 4 Attached 55 | . . . . . . 1 3 . 1 . . . . . 3 2 5 5 . 5 2 3 5 4 7 9 . . Fabnet Peak Effective % . | . . . . . . . . . . . . . . . . . . . . . . . . . . . . . Robots Rewired 28 | . . . . . . . . . . 3 . 9 . . . . 8 . 3 . . . 5 . . . . . Allies Hacked 6 | . . . . . . 1 . . . . . . . . . 3 . . . . . . . . 1 1 . . Hacks Repelled . | . . . . . . . . . . . . . . . . . . . . . . . . . . . . . Allies | -11 -10 -10 -9 -9 -8 -8 -8 -7 -7 -7 -6 -6 -6 -6 -6 -5 -5 -5 -5 -4 -4 -4 -4 -4 -4 -3 -3 -2 -------- Run | Yrd Mat Min Mat Min Mat Gar Mat Fac Sto Gar Fac Ext Cet Arc Hub Fac Gar Fac Gar Fac Gar Fac Gar Fac Gar Res Tes Res Total Allies 126 | . . . . . . 1 7 . 14 3 . 21 5 . 4 2 19 3 9 3 3 3 10 5 3 11 . . Largest Group 20 | . . . . . . 1 3 . 12 11 . 16 20 18 17 2 10 10 7 8 3 3 8 11 4 3 . . Highest-Rated Group 1053 | . . . . . . 15 52 . 225 211 . 611 1053 863 834 61 477 491 311 324 238 228 444 698 208 183 . . Highest-Rated Ally 159 | . . . . . . 15 21 . 31 31 . 159 159 96 96 49 99 99 62 142 142 116 106 142 56 119 . . Total Orders 39 | . . . . . . . . . . . . . . 1 6 2 7 2 2 5 6 . 6 . 2 . . . STAY 17 | . . . . . . . . . . . . . . 1 5 . 4 1 . . 3 . 2 . 1 . . . FOLLOW 14 | . . . . . . . . . . . . . . . 1 1 3 1 . 2 3 . 2 . 1 . . . AID 6 | . . . . . . . . . . . . . . . . 1 . . . 3 . . 2 . . . . . EXPLORE 2 | . . . . . . . . . . . . . . . . . . . 2 . . . . . . . . . Ally Attacks 1091 | . . . . . . 6 57 . 33 62 . 90 48 12 134 17 80 94 44 24 25 17 97 91 32 128 . . Total Damage 28481 | . . . . . . 141 742 . 576 724 . 1271 1045 226 3426 550 1685 2697 1105 519 1151 400 3001 4287 1099 3836 . . Kills 194 | . . . . . . 1 7 . 3 12 . 8 9 1 22 5 11 15 8 6 10 2 20 24 11 19 . . Allies Corrupted 6 | . . . . . . . 1 . 1 . . . . . . . 1 . . 1 . . 1 . . 1 . . Allies Melted 4 | . . . . . . . . . 1 . . . . . 1 . 2 . . . . . . . . . . . Intel | -11 -10 -10 -9 -9 -8 -8 -8 -7 -7 -7 -6 -6 -6 -6 -6 -5 -5 -5 -5 -4 -4 -4 -4 -4 -4 -3 -3 -2 ------- Run | Yrd Mat Min Mat Min Mat Gar Mat Fac Sto Gar Fac Ext Cet Arc Hub Fac Gar Fac Gar Fac Gar Fac Gar Fac Gar Res Tes Res Active Infowar (turns) 28409 | 35 1580 768 1842 793 272 . 295 148 . . 607 1611 497 408 2759 1463 2726 1186 1325 655 1827 199 1614 764 1920 1653 797 665 Optics 16348 | . . . 613 490 . . . . . . 607 1611 497 408 2759 1463 2726 1186 1325 655 442 . . . . 104 797 665 Sensors 2103 | . . . . 1 . . 295 148 . . . . . . . 1207 58 4 . 1 . . . . . . . 389 Terrain 879 | 31 848 . . . . . . . . . . . . . . . . . . . . . . . . . . . Structural 774 | . . . . 765 9 . . . . . . . . . . . . . . . . . . . . . . . Seismic 4505 | 35 1580 768 1229 302 272 . . . . . . . . . . . . 302 17 . . . . . . . . . Machine Analysis 2 | . . . . . . . . . . . . . . . . . . . . . . 2 . . . . . . Cloaking 2 | . . . . . . . . . . . . . . . . . . . . . . . . . . 2 . . Jamming 13510 | . . . . . . . . . . . . . . . 763 319 1853 456 934 645 1825 197 1614 764 1920 1651 567 2 Robot Analysis Total . | . . . . . . . . . . . . . . . . . . . . . . . . . . . . . Derelict Logs Recovered 2 | . . 1 . 1 . . . . . . . . . . . . . . . . . . . . . . . . Drone Launches 3 | . . . . . . . . . . . . . . . . . . . 3 . . . . . . . . . Drone Recoveries 1 | . . . . . . . . . . . . . . . . . . . 1 . . . . . . . . . Exploration | -11 -10 -10 -9 -9 -8 -8 -8 -7 -7 -7 -6 -6 -6 -6 -6 -5 -5 -5 -5 -4 -4 -4 -4 -4 -4 -3 -3 -2 ------------- Run | Yrd Mat Min Mat Min Mat Gar Mat Fac Sto Gar Fac Ext Cet Arc Hub Fac Gar Fac Gar Fac Gar Fac Gar Fac Gar Res Tes Res Turns Passed 37860 | 96 1580 768 1881 852 1909 1221 910 1220 1287 1400 665 1611 497 765 2759 1463 2726 1186 1325 655 1827 281 2314 765 1920 2410 806 761 Spaces Moved 19868 | 47 545 324 892 486 837 560 486 701 587 677 360 852 211 222 1317 779 1355 803 819 397 1036 113 1517 499 782 1435 804 425 Core 132 | 4 . . 1 . . . . . . . . . . . . . . . . . . . . . . . . 127 Treads 10927 | 43 545 324 706 486 775 560 486 615 242 677 360 852 211 222 1273 459 . . . . . . . 82 782 807 141 279 Legs 6085 | . . . . . . . . . . . . . . . 44 297 450 803 819 397 1036 113 1517 417 . 192 . . Wheels 1606 | . . . 185 . 62 . . 86 345 . . . . . . 23 905 . . . . . . . . . . . Hover . | . . . . . . . . . . . . . . . . . . . . . . . . . . . . . Flight 1118 | . . . . . . . . . . . . . . . . . . . . . . . . . . 436 663 19 Fastest Speed 22 | 50 160 160 90 160 155 165 162 130 130 160 160 160 160 160 100 100 110 105 105 105 110 186 108 108 160 39 29 22 Average Speed 139 | 150 160 160 152 160 163 165 163 160 143 161 160 160 160 160 158 146 143 108 105 113 126 186 115 117 180 129 52 121 Slowest Speed 480 | 160 160 160 250 240 185 165 165 165 243 240 320 160 160 160 240 480 180 110 105 170 190 190 186 240 240 362 160 160 Overloaded Moves 4 | . . . . . . . . . . . . . . . . . . . . . . . . . . . . 4 Propulsion Burnouts . | . . . . . . . . . . . . . . . . . . . . . . . . . . . . . Robots Hopped 11 | . . . . . . . . . . . . . . . . . . . . 2 . . . . . 3 6 . Potential Cave-ins 7 | . . . . . . . . . . . . . . . . 2 . . . . . . . . . . 3 2 Cave-ins Triggered 2 | . . . . . . . . . . . . . . . . . . . . . . . . . . 1 . 1 Exploration Rate (%) 60 | 4 90 66 82 98 79 78 46 21 77 92 13 94 60 93 93 22 87 23 75 12 92 7 93 15 87 47 80 16 Regions Visited 28 Branch Regions 8 Pre-discovered Areas 4 | . 1 . 3 . . . . . . . . . . . . . . . . . . . . . . . . . Known Exits Taken 13 | . . 1 1 1 1 . 1 1 1 . . . . . . 1 . 1 . 1 . 1 . 1 . . 1 . Unknown Exits Taken 8 | 1 1 . . . . . . . . . 1 1 1 1 1 . . . . . . . . . . 1 . . Scrap Searched 4 | . . 1 . 3 . . . . . . . . . . . . . . . . . . . . . . . . Spaces Dug 190 | . 6 2 1 1 1 9 11 2 3 15 . . . . . 13 4 4 4 . 3 . 32 2 21 13 22 21 Terrain Destroyed 1325 | . 8 2 2 1 55 36 11 2 27 49 2 5 2 21 397 63 33 37 12 . 60 1 61 42 38 82 114 162 Melee 81 | . . . 1 1 1 . 11 2 . 2 . . . . . . . . . . . . 25 1 17 11 6 3 Projectile 416 | . 8 2 . . . 1 . . 27 . 2 5 2 21 55 41 29 36 10 . 46 1 32 11 19 36 14 18 AOE 812 | . . . 1 . 54 35 . . . 47 . . . . 340 21 . . 2 . 12 . . 30 . 35 94 141 Terrain Rammed . | . . . . . . . . . . . . . . . . . . . . . . . . . . . . . Walls Destroyed . | . . . . . . . . . . . . . . . . . . . . . . . . . . . . . Machines Disabled . | . . . . . . . . . . . . . . . . . . . . . . . . . . . . . Actions | -11 -10 -10 -9 -9 -8 -8 -8 -7 -7 -7 -6 -6 -6 -6 -6 -5 -5 -5 -5 -4 -4 -4 -4 -4 -4 -3 -3 -2 --------- Run | Yrd Mat Min Mat Min Mat Gar Mat Fac Sto Gar Fac Ext Cet Arc Hub Fac Gar Fac Gar Fac Gar Fac Gar Fac Gar Res Tes Res Total 26769 | 60 1130 498 1195 524 1165 743 561 767 889 848 418 1035 338 582 1804 1005 1852 1022 1101 572 1384 170 1929 631 1093 1783 1078 592 Wait 2599 | . 496 112 62 . 96 58 8 6 107 32 26 86 69 328 313 42 41 89 40 94 89 26 159 31 63 46 61 19 Move 19827 | 46 544 323 891 485 837 559 485 700 587 676 359 851 210 221 1316 779 1354 803 818 393 1035 113 1516 499 781 1429 792 425 Hop 9 | . . . . . . . . . . . . . . . . . . . . 2 . . . . . 2 5 . Pick Up 402 | 1 8 4 34 4 32 12 6 10 25 12 4 3 9 . 11 25 27 11 18 13 23 . 18 4 25 32 18 13 Fast Attach 201 | 7 1 2 18 1 9 2 2 4 3 2 6 4 4 5 6 11 11 7 14 4 7 . 9 7 9 26 9 11 Attach 157 | . . 1 4 4 9 1 3 3 5 5 . . . . 9 23 16 5 7 4 4 . 7 . 6 23 13 5 Detach 84 | . . . 4 2 2 . . 2 2 . . . . 1 4 16 11 . 2 3 1 . 3 . 2 12 13 4 Swap 609 | . 10 12 24 6 31 22 7 10 35 19 3 4 13 7 32 8 37 36 26 24 30 9 32 32 52 60 18 10 Drop 433 | . 1 5 36 4 32 12 6 12 26 15 8 7 16 2 10 17 30 13 23 10 25 . 20 15 23 33 16 16 Fire 1750 | 5 66 36 103 16 115 51 28 18 83 64 12 28 10 18 96 83 180 54 106 25 115 20 77 36 76 105 58 66 Melee 236 | . . . 17 1 1 26 15 2 4 4 . . 7 . . . . . . . . . 35 1 47 13 44 19 Ram 3 | . . . . . . . . . . . . . . . . . . . . . . . . . . . . 3 Kick 15 | . . . . . . . . . . . . . . . . . 3 4 . . . 2 . 6 . . . . Crush 26 | 1 4 3 2 1 1 . 1 . 1 1 . 1 . . 6 1 . . . . . . . . . 2 . 1 Escape Stasis 160 | . . . . . . . . . 8 . . . . . . . 48 . 21 . 29 . 15 . 8 . 31 . Rewire 258 | . . . . . . . . . 3 18 . 51 . . 1 . 94 . 26 . 26 . 38 . 1 . . . Trap . | . . . . . . . . . . . . . . . . . . . . . . . . . . . . . Miscellaneous . | . . . . . . . . . . . . . . . . . . . . . . . . . . . . . Route ------- -11/Scrapyard -10/Materials (discovered 6 exits: *Mat x3 / [*Min x2] / *Sub) -10/Mines (discovered 3 exits: *Mat x2 / Sub) -9/Materials (discovered 4 exits: *Mat x3 / *Min) -9/Mines (discovered 2 exits: *Mat x2) -8/Materials (discovered 4 exits: *Fac x3 / Gar) -8/Garrison (discovered 3 exits: *Mat x3) -8/Materials -7/Factory (discovered 3 exits: *Sto x2 / [*Low]) -7/Storage (discovered 3 exits: Fac / Rec / Gar) -7/Garrison (discovered 3 exits: *Fac x3) -6/Factory -6/Extension (discovered 2 exits: *Fac / *Cet) -6/Cetus (discovered 2 exits: *Fac / [*Arc]) -6/Archives (discovered 3 exits: *Fac / *Hub x2) -6/Hub_04(d) (discovered 4 exits: *Fac x4) -5/Factory (discovered 2 exits: [*Upp] / Gar) -5/Garrison (discovered 4 exits: *Fac x3 / *Fac) -5/Factory (discovered 4 exits: *Fac x3 / Gar) -5/Garrison (discovered 3 exits: *Fac x3) -4/Factory -4/Garrison (discovered 4 exits: *Res x3 / *Fac) -4/Factory -4/Garrison (discovered 4 exits: *Res x3 / *Fac) -4/Factory (discovered 2 exits: [*Upp] / Gar) -4/Garrison (discovered 3 exits: *Res x3) -3/Research (discovered 3 exits: *Res x2 / *Tes) -3/Testing -2/Research History --------- Turn | Location | Event 76 | -11/Scrapyard | Discovered new exit (range 12) 97 | -11/Scrapyard | Entered Materials 282 | -10/Materials | Discovered new exit (range 13) 309 | -10/Materials | Build established: Mutant 515 | -10/Materials | Discovered new exit (range 5) 682 | -10/Materials | Discovered new exit (range 13) 713 | -10/Materials | Repaired Lgt. Treads 848 | -10/Materials | Discovered new exit (range 16) 1030 | -10/Materials | Discovered new exit (range 6) 1105 | -10/Materials | Discovered new exit (range 16) 1226 | -10/Materials | Build established: Scavenger-Mutant 1384 | -10/Materials | Learned 2 Storage zone layouts 1433 | -10/Materials | Learned Storage emergency access door positions 1470 | -10/Materials | Learned location of 1 exit from Recycling 1499 | -10/Materials | Learned 2 Storage zone layouts 1551 | -10/Materials | Learned 2 Mines zone layouts 1645 | -10/Materials | Learned 2 Storage zone layouts 1677 | -10/Materials | Entered Mines 1678 | -10/Mines | Identified exit to Materials 1678 | -10/Mines | Identified exit to Subcaves 1780 | -10/Mines | Learned location of 1 exit from Materials 1793 | -10/Mines | Found a Scrap Suit stashed away for nefarious purposes 2018 | -10/Mines | Assembled infested the area 2034 | -10/Mines | Build established: Mutant 2067 | -10/Mines | Met a Derelict who couldn't figure out how to use a Trap Extractor 2123 | -10/Mines | Core integrity fell below 50% 2445 | -10/Mines | Entered Materials 2445 | -9/Materials | Evolved 2 slots: Propulsion x1, Utility x1 2446 | -9/Materials | Identified exit to Mines 2447 | -9/Materials | Identified exit to Materials 2545 | -9/Materials | Lost 3 parts (1n1u1w) 3251 | -9/Materials | Discovered exit to Materials (range 13) 3567 | -9/Materials | Central database locked down 3580 | -9/Materials | Build established: Scavenger-Mutant 3606 | -9/Materials | Learned Storage stockpile data 3727 | -9/Materials | Learned Storage security intel 3771 | -9/Materials | Learned Storage trap positions 4016 | -9/Materials | Build established: Mutant 4248 | -9/Materials | Core integrity fell below 50% 4326 | -9/Materials | Entered Mines 4412 | -9/Mines | Found a damaged Exp. Sensor Array with a note attached 4415 | -9/Mines | Found Prototype Device 4415 | -9/Mines | Identified Exp. Sensor Array 4694 | -9/Mines | Discovered exit to Materials (range 10) 4733 | -9/Mines | A Derelict revealed a hidden shortcut to a safe place 4805 | -9/Mines | Learned location of 1 exit from Materials 4848 | -9/Mines | Destroyed YI-UF0 4857 | -9/Mines | Found Prototype Storage 4861 | -9/Mines | Identified YI-UF0's Bottomless Matter Pit 4917 | -9/Mines | Discovered exit to Materials (range 10) 5178 | -9/Mines | Entered Materials 5178 | -8/Materials | Evolved 2 slots: Propulsion x1, Weapon x1 5179 | -8/Materials | Identified exit to Factory 5396 | -8/Materials | Destroyed 7 combat bots 5510 | -8/Materials | Lost 9 parts (1p4n2u2w) 5546 | -8/Materials | Discovered exit to Factory (range 10) 5926 | -8/Materials | Build established: Scavenger-Gunner 6391 | -8/Materials | Discovered exit to Factory (range 16) 6674 | -8/Materials | Build established: Gunner 6680 | -8/Materials | Central database locked down 6777 | -8/Materials | Core integrity fell below 50% 6778 | -8/Materials | First assault squad dispatched 6887 | -8/Materials | Garrison activated, responded to threat 6949 | -8/Materials | Learned Storage stockpile data 6953 | -8/Materials | Destroyed 7 combat bots 7018 | -8/Materials | Learned Factory emergency access door positions 7025 | -8/Materials | Identified exit to Garrison 7077 | -8/Materials | Learned 2 Storage zone layouts 7087 | -8/Materials | Entered Garrison 7135 | -8/Garrison | Triggered checkpoint 7171 | -8/Garrison | Garrison Relay disabled 7237 | -8/Garrison | Build established: Scavenger-Gunner 7259 | -8/Garrison | Triggered checkpoint 7359 | -8/Garrison | Triggered checkpoint 7533 | -8/Garrison | Discovered new exit (range 14) 7678 | -8/Garrison | Triggered checkpoint 7757 | -8/Garrison | Discovered new exit (range 55) 7757 | -8/Garrison | Discovered new exit (range 45) 7757 | -8/Garrison | Discovered new exit (range 34) 7810 | -8/Garrison | Triggered checkpoint 7818 | -8/Garrison | Triggered checkpoint 7889 | -8/Garrison | Triggered checkpoint 7913 | -8/Garrison | Core integrity fell below 20% 8019 | -8/Garrison | Installed Relay Interface Framework 8286 | -8/Garrison | Expanded RIF knowledge: Threat Obfuscation 8308 | -8/Garrison | Entered Materials 8705 | -8/Materials | Lost 3 allies 9163 | -8/Materials | Build established: Mutant 9211 | -8/Materials | Discovered exit to Factory (range 5) 9218 | -8/Materials | Entered Factory 9218 | -7/Factory | Evolved 2 slots: Utility x2 9219 | -7/Factory | Identified exit to Storage 9534 | -7/Factory | Discovered new exit (range 5) 9886 | -7/Factory | Build established: Tank 10417 | -7/Factory | Discovered exit to Storage (range 6) 10438 | -7/Factory | Entered Storage 10439 | -7/Storage | Identified exit to Factory 10439 | -7/Storage | Identified exit to Recycling 10440 | -7/Storage | Loaded intel: 16 trap records 10914 | -7/Storage | Found Prototype Launcher 10914 | -7/Storage | Identified Rocket Array 11026 | -7/Storage | Build established: Gunner 11056 | -7/Storage | Met a pair of Derelict thieves 11536 | -7/Storage | Assisted by bots powering up and referring to "LRC-V3" 11691 | -7/Storage | P-60 Hacker assimilated allied Trooper 4c 11701 | -7/Storage | Identified exit to Garrison 11725 | -7/Storage | Entered Garrison 11725 | -7/Garrison | Accompanied by 11 allies 11786 | -7/Garrison | Lost 3 allies 11835 | -7/Garrison | Build established: Commander-Gunner 11857 | -7/Garrison | Triggered checkpoint 11872 | -7/Garrison | Garrison Relay disabled 11958 | -7/Garrison | Triggered checkpoint 11978 | -7/Garrison | Triggered checkpoint 12005 | -7/Garrison | Triggered checkpoint 12030 | -7/Garrison | Lost 8 allies 12034 | -7/Garrison | Destroyed 8 combat bots 12059 | -7/Garrison | Triggered checkpoint 12119 | -7/Garrison | Expanded RIF knowledge: Patrol Navigation 12213 | -7/Garrison | Triggered checkpoint 12536 | -7/Garrison | Build established: Scavenger-Gunner 12573 | -7/Garrison | Discovered exit to Factory (range 12) 12699 | -7/Garrison | Discovered exit to Factory (range 8) 12725 | -7/Garrison | Found Imp. Powered Armor 12802 | -7/Garrison | Triggered checkpoint 12985 | -7/Garrison | Discovered exit to Factory (range 8) 13003 | -7/Garrison | Triggered checkpoint 13025 | -7/Garrison | Build established: Tank 13076 | -7/Garrison | Garrison Relay disabled 13125 | -7/Garrison | Entered Factory 13125 | -6/Factory | Evolved 2 slots: Utility x1, Weapon x1 13349 | -6/Factory | Build established: Bothacker-Tank 13750 | -6/Factory | Discovered new exit (range 22) 13790 | -6/Factory | Entered Extension 13852 | -6/Extension | Rescued a captive Derelict 13860 | -6/Extension | Rescued a captive Derelict 13873 | -6/Extension | Rescued a captive Derelict 13950 | -6/Extension | Rescued a captive Derelict 13951 | -6/Extension | Rescued a captive Derelict 14110 | -6/Extension | Destroyed 7 combat bots 14129 | -6/Extension | Rescued a captive Derelict 14169 | -6/Extension | Rescued a captive Derelict 14451 | -6/Extension | Spotted B-75 Beast 14472 | -6/Extension | Spotted B-75 Beast 14474 | -6/Extension | Allies destroyed B-75 Beast 14490 | -6/Extension | Destroyed B-75 Beast 14518 | -6/Extension | Lost 4 allies 14592 | -6/Extension | Rescued a captive Derelict 14783 | -6/Extension | Rescued a captive Derelict 14784 | -6/Extension | Rescued a captive Derelict 14857 | -6/Extension | Rescued a captive Derelict 14858 | -6/Extension | Rescued a captive Derelict 14896 | -6/Extension | Discovered new exit (range 10) 14898 | -6/Extension | Discovered new exit (range 6) 15051 | -6/Extension | Build established: Commander-Tank 15195 | -6/Extension | Rescued A7 15401 | -6/Extension | Entered Cetus 15401 | -6/Cetus | Accompanied by 16 allies (A7) 15406 | -6/Cetus | Acquired a Cetus Manufacturing Module code from A7 15417 | -6/Cetus | Spotted Cetus Guard 15417 | -6/Cetus | Spotted Cetus Guard 15418 | -6/Cetus | Spotted Cetus Guard 15419 | -6/Cetus | Spotted Cetus Guard 15424 | -6/Cetus | Allies destroyed Cetus Guard 15426 | -6/Cetus | Allies destroyed Cetus Guard 15430 | -6/Cetus | Allies destroyed Cetus Guard 15434 | -6/Cetus | Allies destroyed Cetus Guard 15531 | -6/Cetus | Started Cetus Manufacturing Module 15543 | -6/Cetus | Discovered new exit (range 21) 15556 | -6/Cetus | Manufactured an Enhanced Grunt 15575 | -6/Cetus | Spotted Cetus Guard 15575 | -6/Cetus | Spotted Cetus Guard 15578 | -6/Cetus | Spotted Cetus Guard 15581 | -6/Cetus | Manufactured an Enhanced Grunt 15585 | -6/Cetus | Allies destroyed Cetus Guard 15586 | -6/Cetus | Spotted Cetus Guard 15588 | -6/Cetus | Allies destroyed Cetus Guard 15588 | -6/Cetus | Allies destroyed Cetus Guard 15594 | -6/Cetus | Discovered new exit (range 22) 15596 | -6/Cetus | Allies destroyed Cetus Guard 15606 | -6/Cetus | Manufactured an Enhanced Grunt 15620 | -6/Cetus | Met Revision 17 15631 | -6/Cetus | Manufactured an Enhanced Grunt 15656 | -6/Cetus | Manufactured an Enhanced Grunt 15714 | -6/Cetus | Murdered A7 15716 | -6/Cetus | Extracted ID and sensor layout for unrecognized location from A7's data core 15898 | -6/Cetus | Entered Archives 15898 | -6/Archives | Accompanied by 18 allies 15940 | -6/Archives | Discovered new exit (range 22) 15950 | -6/Archives | Lost 3 allies 15964 | -6/Archives | Discovered new exit (range 14) 15989 | -6/Archives | Discovered new exit (range 14) 16663 | -6/Archives | Entered Hub_04(d) 16663 | -6/Hub_04(d) | Accompanied by 15 allies 16780 | -6/Hub_04(d) | Discovered new exit (range 5) 17013 | -6/Hub_04(d) | First assault squad dispatched 17025 | -6/Hub_04(d) | Discovered new exit (range 13) 17059 | -6/Hub_04(d) | Lost 4 allies 17328 | -6/Hub_04(d) | Discovered new exit (range 12) 17436 | -6/Hub_04(d) | Discovered new exit (range 24) 17481 | -6/Hub_04(d) | Build established: Scavenger-Tank 17749 | -6/Hub_04(d) | Learned Factory garrison access intel 17838 | -6/Hub_04(d) | Learned 2 Lower Caves zone layouts 17887 | -6/Hub_04(d) | Learned 4 Extension zone layouts 17897 | -6/Hub_04(d) | Learned Factory terminal intel 17898 | -6/Hub_04(d) | Learned 2 Extension zone layouts 17905 | -6/Hub_04(d) | Learned 2 Proximity Caves zone layouts 17922 | -6/Hub_04(d) | Learned Factory recycling unit intel 18394 | -6/Hub_04(d) | Network Hub disabled 18422 | -6/Hub_04(d) | Spotted Lightning 18422 | -6/Hub_04(d) | Spotted Lightning 18424 | -6/Hub_04(d) | Spotted Lightning 18435 | -6/Hub_04(d) | Destroyed Lightning 18438 | -6/Hub_04(d) | Destroyed Lightning 18438 | -6/Hub_04(d) | Allies destroyed Lightning 18456 | -6/Hub_04(d) | Found Prototype Device 18456 | -6/Hub_04(d) | Identified Exp. Phase Shifter 18468 | -6/Hub_04(d) | Found Prototype Processor 18468 | -6/Hub_04(d) | Identified Exp. Targeting Computer 18618 | -6/Hub_04(d) | Found Prototype Energy Cannon 19118 | -6/Hub_04(d) | Network Hub disabled 19232 | -6/Hub_04(d) | Spotted Lightning 19246 | -6/Hub_04(d) | Spotted Lightning 19259 | -6/Hub_04(d) | Spotted Lightning 19267 | -6/Hub_04(d) | System corruption reached 10% 19275 | -6/Hub_04(d) | Destroyed Lightning 19320 | -6/Hub_04(d) | Destroyed Lightning 19332 | -6/Hub_04(d) | Network Hub disabled 19337 | -6/Hub_04(d) | Network Hub disabled 19337 | -6/Hub_04(d) | Spotted Lightning 19337 | -6/Hub_04(d) | Spotted Lightning 19338 | -6/Hub_04(d) | Spotted Lightning 19345 | -6/Hub_04(d) | System corruption reached 30% 19352 | -6/Hub_04(d) | Core integrity fell below 50% 19390 | -6/Hub_04(d) | Lost 10 parts (2n3u5w) 19422 | -6/Hub_04(d) | Entered Factory 19422 | -5/Factory | Evolved 2 slots: Power x1, Utility x1 19423 | -5/Factory | Loaded intel: 26 terminal locations 19424 | -5/Factory | Loaded intel: 8 recycling unit locations 19425 | -5/Factory | Loaded intel: 3 garrison access locations 19544 | -5/Factory | Found Imp. Powered Armor 19748 | -5/Factory | Identified EMDS 19906 | -5/Factory | Build established: Scavenger-Skirmisher 20014 | -5/Factory | Discovered new exit (range 21) 20421 | -5/Factory | Repaired Broken Imp. Powered Armor? 20750 | -5/Factory | Build established: Scavenger-Tank 20885 | -5/Factory | Identified exit to Garrison 20885 | -5/Factory | Entered Garrison 20918 | -5/Garrison | Expanded RIF knowledge: Coupler Efficiency 20957 | -5/Garrison | Triggered checkpoint 21004 | -5/Garrison | Garrison Relay disabled 21135 | -5/Garrison | Triggered checkpoint 21145 | -5/Garrison | Discovered new exit (range 5) 21176 | -5/Garrison | Identified exit to Factory 21263 | -5/Garrison | Triggered checkpoint 21299 | -5/Garrison | Triggered checkpoint 21448 | -5/Garrison | Triggered checkpoint 21547 | -5/Garrison | Triggered checkpoint 21572 | -5/Garrison | Discovered new exit (range 9) 21582 | -5/Garrison | Identified exit to Factory 21683 | -5/Garrison | Triggered checkpoint 21700 | -5/Garrison | Garrison Relay disabled 21896 | -5/Garrison | Garrison Relay disabled 21908 | -5/Garrison | Triggered checkpoint 21986 | -5/Garrison | Discovered exit to Factory (range 11) 22202 | -5/Garrison | Build established: Bothacker-Tank 22271 | -5/Garrison | Spotted B-75 Beast 22932 | -5/Garrison | System corruption reached 10% 22961 | -5/Garrison | Destroyed 8 combat bots 22970 | -5/Garrison | Lost 3 parts (2p1u) 23133 | -5/Garrison | Discovered exit to Factory (range 10) 23147 | -5/Garrison | Triggered checkpoint 23342 | -5/Garrison | Garrison Relay disabled 23451 | -5/Garrison | Rewired Striker 23457 | -5/Garrison | Rewired Striker 23611 | -5/Garrison | Entered Factory 23611 | -5/Factory | Accompanied by 9 allies 23618 | -5/Factory | Discovered exit to Factory (range 14) 23618 | -5/Factory | Discovered exit to Factory (range 12) 23664 | -5/Factory | Build established: Bothacker-Gunner 23696 | -5/Factory | Fabricated Enh. Biometal Leg (x1) 23756 | -5/Factory | Fabricated Enh. Biometal Leg (x1) 24206 | -5/Factory | Fabricated Centrium Leg (x1) 24264 | -5/Factory | Fabricated Enh. Biometal Leg? 24356 | -5/Factory | Destroyed Striker 24363 | -5/Factory | P-70 Sage assimilated allied Soldier 6j 24430 | -5/Factory | Lost 4 allies 24667 | -5/Factory | Discovered exit to Factory (range 11) 24797 | -5/Factory | Identified exit to Garrison 24797 | -5/Factory | Entered Garrison 24797 | -5/Garrison | Accompanied by 2 allies 24817 | -5/Garrison | Triggered checkpoint 24840 | -5/Garrison | Garrison Relay disabled 24989 | -5/Garrison | Spotted B-75 Beast 24999 | -5/Garrison | Triggered checkpoint 25004 | -5/Garrison | Triggered checkpoint 25013 | -5/Garrison | Allies destroyed B-75 Beast 25105 | -5/Garrison | Lost 4 parts (4w) 25137 | -5/Garrison | Triggered checkpoint 25168 | -5/Garrison | Garrison Relay disabled 25197 | -5/Garrison | Discovered exit to Factory (range 19) 25334 | -5/Garrison | Lost 3 parts (3u) 25363 | -5/Garrison | Triggered checkpoint 25381 | -5/Garrison | Garrison Relay disabled 25527 | -5/Garrison | Discovered exit to Factory (range 12) 25607 | -5/Garrison | Triggered checkpoint 25620 | -5/Garrison | Garrison Relay disabled 25724 | -5/Garrison | Rescued a captive Derelict 25724 | -5/Garrison | Rescued a captive Derelict 25757 | -5/Garrison | Found embedded Infiltrators 25823 | -5/Garrison | Triggered checkpoint 25923 | -5/Garrison | Build established: Botlord-Tank 25931 | -5/Garrison | Garrison Relay disabled 25962 | -5/Garrison | Discovered exit to Factory (range 10) 25974 | -5/Garrison | Expanded RIF knowledge: Robot Detection 26122 | -5/Garrison | Entered Factory 26122 | -4/Factory | Accompanied by 7 allies 26122 | -4/Factory | Evolved 2 slots: Utility x2 26318 | -4/Factory | Repaired Broken Enh. Biometal Leg 26416 | -4/Factory | Build established: Botlord-Gunner 26640 | -4/Factory | Lost 3 allies 26700 | -4/Factory | Lost 3 allies 26777 | -4/Factory | Identified exit to Garrison 26777 | -4/Factory | Entered Garrison 26777 | -4/Garrison | Accompanied by 2 allies 26803 | -4/Garrison | Triggered checkpoint 26848 | -4/Garrison | Garrison Relay disabled 26877 | -4/Garrison | Triggered checkpoint 26899 | -4/Garrison | Discovered new exit (range 13) 26930 | -4/Garrison | Lost 3 allies 27134 | -4/Garrison | Triggered checkpoint 27218 | -4/Garrison | Spotted B-86 Titan 27221 | -4/Garrison | Triggered checkpoint 27222 | -4/Garrison | Assimilated Titan 7a with formatsys_high 27229 | -4/Garrison | Destroyed 8 combat bots 27279 | -4/Garrison | Triggered checkpoint 27360 | -4/Garrison | Expanded RIF knowledge: Threat Obfuscation 27498 | -4/Garrison | Discovered new exit (range 12) 27625 | -4/Garrison | Triggered checkpoint 27664 | -4/Garrison | Garrison Relay disabled 27846 | -4/Garrison | Found Relay Coupler [Proto] 27848 | -4/Garrison | Found Relay Coupler [Proto] 27850 | -4/Garrison | Found Relay Coupler [Proto] 27855 | -4/Garrison | Found Relay Coupler [Proto] 27915 | -4/Garrison | Garrison Relay disabled 27941 | -4/Garrison | Triggered checkpoint 27967 | -4/Garrison | Garrison Relay disabled 27987 | -4/Garrison | Discovered new exit (range 10) 28080 | -4/Garrison | Triggered checkpoint 28203 | -4/Garrison | Triggered checkpoint 28247 | -4/Garrison | Garrison Relay disabled 28314 | -4/Garrison | Discovered new exit (range 15) 28604 | -4/Garrison | Entered Factory 28604 | -4/Factory | Accompanied by 1 ally 28620 | -4/Factory | Central database locked down 28867 | -4/Factory | Identified exit to Garrison 28885 | -4/Factory | Entered Garrison 28885 | -4/Garrison | Accompanied by 3 allies 28889 | -4/Garrison | Triggered checkpoint 28954 | -4/Garrison | Rescued a captive Derelict 28965 | -4/Garrison | Garrison Relay disabled 28978 | -4/Garrison | Garrison Relay disabled 29345 | -4/Garrison | Triggered checkpoint 29355 | -4/Garrison | Spotted B-86 Titan 29358 | -4/Garrison | Allies destroyed B-86 Titan 29361 | -4/Garrison | Triggered checkpoint 29372 | -4/Garrison | Triggered checkpoint 29439 | -4/Garrison | Triggered checkpoint 29486 | -4/Garrison | Lost 3 allies 29530 | -4/Garrison | Triggered checkpoint 29539 | -4/Garrison | Garrison Relay disabled 29565 | -4/Garrison | Triggered checkpoint 29605 | -4/Garrison | Lost 3 parts (2u1w) 29886 | -4/Garrison | Discovered new exit (range 8) 30124 | -4/Garrison | Build established: Botlord-Tank 30190 | -4/Garrison | Discovered new exit (range 5) 30319 | -4/Garrison | Discovered new exit (range 10) 30341 | -4/Garrison | Triggered checkpoint 30529 | -4/Garrison | Triggered checkpoint 30537 | -4/Garrison | Garrison Relay disabled 30723 | -4/Garrison | Triggered checkpoint 30736 | -4/Garrison | Garrison Relay disabled 30800 | -4/Garrison | Learned Research security intel 30803 | -4/Garrison | Learned Research security intel 30818 | -4/Garrison | Discovered new exit (range 12) 30845 | -4/Garrison | Expanded RIF knowledge: Zone Cloak 30915 | -4/Garrison | Triggered checkpoint 30928 | -4/Garrison | Garrison Relay disabled 31199 | -4/Garrison | Entered Factory 31199 | -4/Factory | Accompanied by 8 allies 31484 | -4/Factory | Found Prototype Device 31484 | -4/Factory | Identified Adv. EM Shield 31696 | -4/Factory | Lost 6 allies 31699 | -4/Factory | First assault squad dispatched 31896 | -4/Factory | Discovered new exit (range 3) 31949 | -4/Factory | Unchained authorized (QV-33N) 31963 | -4/Factory | Identified exit to Garrison 31964 | -4/Factory | Entered Garrison 31964 | -4/Garrison | Accompanied by 4 allies 32014 | -4/Garrison | Triggered checkpoint 32093 | -4/Garrison | Garrison Relay disabled 32162 | -4/Garrison | Triggered checkpoint 32170 | -4/Garrison | Triggered checkpoint 32170 | -4/Garrison | Spotted B-86 Titan 32214 | -4/Garrison | Lost 4 allies 32214 | -4/Garrison | Destroyed B-86 Titan 32555 | -4/Garrison | Discovered new exit (range 11) 32716 | -4/Garrison | Garrison Relay disabled 32738 | -4/Garrison | Triggered checkpoint 32817 | -4/Garrison | Spotted B-86 Titan 32827 | -4/Garrison | Garrison Relay disabled 32881 | -4/Garrison | Triggered checkpoint 32994 | -4/Garrison | Triggered checkpoint 33039 | -4/Garrison | Garrison Relay disabled 33157 | -4/Garrison | Discovered new exit (range 10) 33208 | -4/Garrison | Triggered checkpoint 33298 | -4/Garrison | Found Relay Coupler [Proto] 33302 | -4/Garrison | Found Relay Coupler [Proto] 33305 | -4/Garrison | Found Relay Coupler [Proto] 33354 | -4/Garrison | Garrison Relay disabled 33612 | -4/Garrison | Triggered checkpoint 33676 | -4/Garrison | Garrison Relay disabled 33748 | -4/Garrison | Expanded RIF knowledge: Zone Cloak 33843 | -4/Garrison | Discovered new exit (range 12) 33884 | -4/Garrison | Entered Research 33884 | -3/Research | Evolved 2 slots: Propulsion x2 34084 | -3/Research | Revision forces began assault on 0b10 34133 | -3/Research | Met up with Revision 17++ 34172 | -3/Research | Spotted B-86 Titan 34180 | -3/Research | Allies destroyed B-86 Titan 34519 | -3/Research | Discovered new exit (range 12) 34584 | -3/Research | Research terminal network offline 34660 | -3/Research | Discovered new exit (range 15) 34734 | -3/Research | Discovered new exit (range 16) 34777 | -3/Research | Found Prototype Processor 34777 | -3/Research | Identified Exp. Signal Interpreter 34792 | -3/Research | Identified exit to Research 35139 | -3/Research | Spotted Striker 35143 | -3/Research | Allies destroyed Striker 35209 | -3/Research | Identified exit to Garrison 35236 | -3/Research | Spotted Striker 35242 | -3/Research | Lost 3 allies 35256 | -3/Research | Spotted Executioner 35259 | -3/Research | Assimilated Executioner with formatsys_high 35332 | -3/Research | Destroyed Executioner 35340 | -3/Research | Found Exp. Targeting Computer 35404 | -3/Research | Spotted Striker 35407 | -3/Research | Assimilated Striker with formatsys_high 35442 | -3/Research | Lost 6 parts (1p1n1u3w) 35450 | -3/Research | Destroyed 7 combat bots 35484 | -3/Research | Spotted Striker 35488 | -3/Research | Spotted Striker 35490 | -3/Research | Assimilated Striker with formatsys_high 35533 | -3/Research | Lost 5 parts (3n2w) 35535 | -3/Research | Spotted Striker 35539 | -3/Research | Assimilated Striker with formatsys_high 35557 | -3/Research | Crushed by falling debris 35597 | -3/Research | Spotted Striker 35601 | -3/Research | Assimilated Striker with formatsys_high 35759 | -3/Research | Spotted Striker 35761 | -3/Research | Destroyed Striker 35789 | -3/Research | Destroyed Striker 35801 | -3/Research | Lost 3 parts (1p1u1w) 35839 | -3/Research | Spotted Striker 35853 | -3/Research | Destroyed Striker 35853 | -3/Research | Spotted Executioner 35858 | -3/Research | Assimilated Executioner with formatsys_high 35930 | -3/Research | Found Prototype Launcher 35930 | -3/Research | Identified Mni. Smartbomb Launcher 35977 | -3/Research | Spotted Striker 35984 | -3/Research | Core integrity fell below 50% 35996 | -3/Research | Lost 4 allies 36000 | -3/Research | Destroyed Striker 36014 | -3/Research | Spotted Striker 36016 | -3/Research | Destroyed Executioner 36028 | -3/Research | Spotted Striker 36039 | -3/Research | Destroyed Striker 36043 | -3/Research | Destroyed Striker 36097 | -3/Research | Lost 4 parts (2n1u1w) 36182 | -3/Research | Spotted Striker 36183 | -3/Research | Destroyed Striker 36201 | -3/Research | Spotted Striker 36268 | -3/Research | Build established: Bothacker-Mutant 36288 | -3/Research | Spotted Striker 36289 | -3/Research | Spotted Striker 36294 | -3/Research | Entered Testing 36328 | -3/Testing | Found AEGIS Remote Shield 36344 | -3/Testing | Central database locked down 36427 | -3/Testing | Found Exp. Hacking Suite 36508 | -3/Testing | Spotted Striker 36508 | -3/Testing | Spotted Striker 36568 | -3/Testing | Protovariant out of control (PG-9HMVWZCW5L) 36615 | -3/Testing | Build established: Scavenger-Sprinter 36666 | -3/Testing | Spotted PG-VI8OPCCK2X 36681 | -3/Testing | Spotted Superbehemoth 36715 | -3/Testing | Found Prototype Energy Cannon 36733 | -3/Testing | Found Prototype Energy Cannon 36806 | -3/Testing | Scanned by Researcher 36807 | -3/Testing | Spotted Investigator 36809 | -3/Testing | Destroyed Investigator 36834 | -3/Testing | Found Prototype Launcher 36839 | -3/Testing | Identified Containment Facilitator 36885 | -3/Testing | Found Prototype Protection 36885 | -3/Testing | Identified SHELL Armor 36902 | -3/Testing | Identified Potential Cannon 36904 | -3/Testing | Core integrity fell below 20% 36990 | -3/Testing | System corruption reached 10% 37016 | -3/Testing | Build established: Scavenger-Tank 37019 | -3/Testing | Discovered exit to Research (range 22) 37029 | -3/Testing | Destroyed 9 combat bots 37044 | -3/Testing | Found Prototype Energy Gun 37044 | -3/Testing | Identified Hyp. EM Gauss Rifle 37100 | -3/Testing | Entered Research 37100 | -2/Research | Evolved 2 slots: Power x1, Utility x1 37315 | -2/Research | Unchained authorized (QV-33N) 37461 | -2/Research | Build established: Scavenger-Assassin 37476 | -2/Research | Spotted B-90 Cyclops 37603 | -2/Research | Destroyed 10 combat bots 37685 | -2/Research | Destroyed 8 combat bots 37765 | -2/Research | Crushed by falling debris 37765 | -2/Research | System corruption reached 10% 37814 | -2/Research | Lost 12 parts (3p2n4u3w) 37835 | -2/Research | Core integrity fell below 50% 37857 | -2/Research | Core integrity fell below 20% 37857 | -2/Research | Spotted Striker 37858 | -2/Research | Cargo convoy interrupted 37860 | -2/Research | Spotted Executioner 37861 | -2/Research | Destroyed by P-80 Master with Gamma Rifle Last Messages --------------- 37857_ H-88 Terminator unfolds itself. 37857_ Striker unfolds itself. 37857_ Slug penetrates Wall. 37857_ Penetrated by Slug. 37857_ K-01 Serf collects debris. 37858_ E4NQF1Y6J>XN7>ZFMVRDH1%2Q 37858_ ALERT: Cargo convoy interrupted, initiating access lockdown. 37858_ R-10 Processor collects Relay Coupler [Grunt]. 37858_ Knocked back. 37859_ U-05 Engineer lays Concrete. 37859_ U-05 Engineer destroyed. 37860_ K-01 Serf collects debris. 37860_ Slug penetrates I-47 Archangel. 37860_ Slug penetrates Wall. 37860_ C-45 Heavy ARC bursts open, deploying its payload. 37860_ P-80 Master unfolds itself. 37860_ Executioner unfolds itself. 37860_ H-88 Terminator unfolds itself. 37860_ G-73 Enforcer knocked back. 37861_ K-01 Serf collects debris. Map ----- +----------------------------------------------------+ | " #?????????????????????????????????? | | # #?????????????????????????????????? | | # #?????????????????????????????????? | | ######### ]#?????????????????????????????????? | | #???########?????????????????????????????????? | | #????????????????????????????????????????????? | | #????????????????????????????????????????????? | | ###+#????????????????????????????????????????????? | | ??# #??????????? ???????????????????????????????? | | ??# #????????""" ????????????????????????????????? | | ### ##????????""G????????????????????????????????? | | # #???##??##"#????###?????????????????????????? | | ######### ###### ##????????????????????????? | | # #????????????????????????? | | #????????????????????????? | | ! #????????????????????????? | | #????????????????????????? | | = " #????????????????????????? | | / # #????????????????????????? | | # !* #????????????????????????? | | %# [ %! % ????????????????????????? | | ######## ##???????????????????????? | | =|!=!! = #???????????????????????? | | %%%!=[! R cc #???????????????????????? | | !====|!! % ! c### #???????????????????? | | =!%=!%[] %! h @A +???????????????????? | | ########+############ K g#####???????????????????? | | ?# # ! ! #pi h#???????????????????????? | | ?#### #Ehh #???????????????????????? | | ##### =**% !%# ghk #???????????????????????? | | " %= *[# ik #???????????????????????? | | # !"" =%# #???????????????????????? | | # "" !%+ g #???????????????????????? | | ?" % # % g###+##########?????????????????? | | ##### # %# #?????????????????? | | ????# ! # # #?????????????????? | | ????########## # #?????????????????? | | ####### ##### # #?????????????????? | | ! # #?????????????????? | | ######## ##%# ##########?????????????????????? | | ??????# ## # #??????????????????????????????? | | ??????# == ???????????????????????????? | | ??????# # ????????????????????????? | | ??????## # = #?????????????????????? | | ???????####### #? """ #?????????????????????? | | ?????????????# #? """ #?????????????????????? | | ?????????????# / ? """ #?????????????????????? | | ?????????????# # ? ?#?????????????????????? | | ?????????????# # ??????????????????????? | | ?????????????# #?######???????????????????????? | +----------------------------------------------------+ Best States ------------- Heat Dissipation 127 Coolant Potential 100 Energy Generation 72 Energy Capacity 1290 Matter Stores 1445 Matter Capacity 1800 Sight Range 23 Robot Scan Range 20 Terrain Scan Range 16 Terrain Scan Density 10 Jamming Range 16 EM Shielding 3 Armor Coverage 1800 Resistance: KI 25 Resistance: TH 15 Utility Shielding 66 Weapon Cycling 25 Phase Shifting 10 Evasion (%) 78 Targeting Accuracy 12 Target Analysis 8 Core Analysis 6 Recoil Reduction 6 Offensive Hacking 16 Relay Coupler Types 6 Relay Coupler Value 163 Authchip Count 2 Item Schematics ----------------- Enh. Autogun | -8/Materials | Scanalyzed Enh. Biometal Leg | -5/Factory | Scanalyzed Exp. ECM Suite | -3/Testing | Archive Fusion Reactor | -3/Testing | Archive Exp. Hacking Suite | -3/Testing | Archive Adv. Gravity Neutralizer | -3/Testing | Archive Spectral Analyzer | -3/Testing | Archive Thunder Hammer | -3/Testing | Archive Hds. Centrium Wheel | -3/Testing | Archive Robot Schematics ------------------ A-02 Transporter | -3/Testing | Archive H-77 Assassin | -3/Testing | Archive M-36 Artificer | -3/Testing | Archive Fabricated ------------ Enh. Biometal Leg | x1 | -5/Factory | Authchip Enh. Biometal Leg | x1 | -5/Factory | Authchip Centrium Leg | x1 | -5/Factory | Preloaded Enh. Biometal Leg | x1 | -5/Factory Repaired ---------- Lgt. Treads | 39% | -10/Materials Imp. Powered Armor | 29% | -5/Factory | Broken Enh. Biometal Leg | 30% | -4/Factory | Broken Studied --------- Hvy. Assault Rifle | -9/Materials | Hacked Lgt. Nuclear Core | -8/Materials | Hacked Mass Driver | -5/Factory | Hacked Myomer Leg | -4/Factory | Hacked Railgun | -3/Research | Hacked Enh. Hardcell Cannon | -3/Research | Hacked Linear Accelerator | -3/Research | Hacked Imp. Remote Datajack | -3/Research | Hacked Impulse Thruster Array | -3/Testing | Hacked Lgt. Quantum Reactor | -2/Research | Hacked Quantum Reactor | -2/Research | Hacked Alien Tech Used ----------------- None Achievements -------------- Hackerman No Room For Error Powerful Protocols Watcher Gambling Zeroed Repercussions Challenges ------------ None Game ------ Seed TrackerAluminumBank Manual? 0 Play Time 06:17:16 Cumulative 949.1 hours Start 2025.11.02 @ 02:38:57 End 2025.11.02 @ 20:06:47 Sessions 3 Manual Loads 0 Difficulty Rogue Special Mode None Game No. 297 Rogue 295 Adventurer 2 Explorer 0 Win Type - Total 65 Types 19/13/15/1/1/1/11/1/1/2 Lore% 97 Gallery% 94 Achievement% 80 Wizard Run 0 Options --------- Layout 0 ASCII 0 Keyboard 1 Movement Numpad Keybinds 0 Fullscreen 1 Font 24/Smallcaps Map View 76x50 Zoom Use 0% Tactical HUD 1 Map Filters NONE Filters NONE Steam 1 RUN: e741905e-eb78-4936-b853-267e5f021e92